{"text_format":"3","workbook":"xlsx","n_sheets":8,"sheets":["Test Normativa","Test sicurezza fari","Test Carte Segnali Abbordi","Test Struttura Motore","Test Ancoraggi e Ormeggi","Test Meteo e Geografia","Test Cartografia e Navigazione","Foglio1"],"not_rendered":{"images":38,"macros":1},"read":"whole","date_system":"1900"}

{"sheet":"Test Normativa","index":0,"n_rows":108,"n_cols":17,"rows_kept":108,"merged":[[0,1,0,5]]}
["                                                      ","Test su Legislazione e Normativa (106 quesiti)",{"$nulls":5},{"$f":"O1&\" domande completate \"&\"su 106 quesiti\"","v":"0 domande completate su 106 quesiti"},{"$f":"'Test Normativa'!N1&\"   Errori su            \"&'Test Normativa'!O1&\"   Risposte\"","v":"0   Errori su            0   Risposte"},{"$nulls":4},{"$f":"SUM(N3:N133)","v":0},{"$f":"SUM(O3:O133)","v":0}]
["TESTO DELLA DOMANDA","RISPOSTA 1","SelezioneRisposta 1","RISPOSTA 2","Selezione Risposta 2","RISPOSTA 3","Selezione Risposta 3","Domanda completata","Esito di ogni risposta",null,"Esito 1 (1=errore)","Esito 2 (1=errore)","Esito 3 (1=errore)","Domande con rispsoste errate","Domande completate","Risposta corretta"]
["1.  Le unità a remi (come pattini, pedalò, ecc...) possono navigare….","a.    Entro un miglio dalla costa.",null,"b.   Entro 6 miglia dalla costa.",null,"c.    Con limiti dalla costa variabili in base alle condizioni meteorologiche.",null,{"$f":"IF(AND(C3=\"X\",E3=\"X\"),\"Selezionare una sola risposta\",IF(AND(C3=\"X\",G3=\"X\"),\"Selezionare una sola risposta\",IF(AND(E3=\"X\",G3=\"X\"),\"Selezionare una sola risposta\",IF(AND(C3=\"\",E3=\"\",G3=\"\"),\"Selezionare una risposta\",\"\"))))","v":"Selezionare una risposta"},{"$f":"IF(O3=0,\"\",IF((K3+L3+M3)=0,IF(AND(C3=\"\",E3=\"\",G3=\"\"),\"\",\"OK\"),\"Errore. Risposta corretta '\"&P3&\"'\"))","v":""},null,{"$f":"IF(C3=\"X\",IF($P3=\"a\",0,1),0)","v":0},{"$f":"IF(E3=\"X\",IF($P3=\"b\",0,1),0)","v":0},{"$f":"IF(G3=\"X\",IF($P3=\"c\",0,1),0)","v":0},{"$f":"IF(H3=\"\",IF(I3=\"OK\",0,IF(I3=\"\",0,1)),0)","v":0},{"$f":"IF(H3=\"\",1,0)","v":0},"a"]
["2. Da quali documenti deve risultare l'utilizzazione di un'imbarcazione da diporto per finalità di locazione e/o noleggio?","a.    Dal registro delle imbarcazioni da diporto e dalla licenza di navigazione.",null,"b.   Soltanto dalla licenza di navigazione.",null,"c.    Dal certificato d'iscrizione nel registro delle imprese.",null,"Selezionare una risposta","",null,0,0,0,0,0,"a","X"]
["3. Cosa si intende per \"unità da diporto\"?","a.    Esclusivamente le unità a motore destinate alla navigazione da diporto.",null,"b.   Esclusivamente le unità a vela destinate alla navigazione da diporto.",null,"c.    Ogni costruzione di qualunque tipo e qualunque mezzo di propulsione destinata alla navigazione da diporto.",null,"Selezionare una risposta","",null,0,0,0,0,0,"c"]
["4. Quale titolo deve possedere il comandante di un'unità da diporto per poter utilizzare un apparato ricetrasmittente VHF/FM?","a.    Nessun titolo.",null,"b.   Il certificato limitato di radiotelefonista per naviglio minore.",null,"c.    Il certificato illimitato di radiotelefonista per naviglio minore.",null,"Selezionare una risposta","",null,0,0,0,0,{"$f":"IF(H6=\"\",1,0)","v":0},"b"]
["5. Coloro che hanno compiuto 16 anni di età …","a.    Possono essere ammessi all'esame per il rilascio della patente nautica anche senza limiti dalla costa.",null,"b.   Possono essere ammessi esclusivamente all'esame per il rilascio della patente nautica entro 12 miglia dalla costa.",null,"c.    Possono assumere il comando e la condotta di natanti a motore e natanti a vela con motore ausiliario e motovelieri.",null,"Selezionare una risposta","",null,0,0,0,0,{"$f":"IF(H7=\"\",1,0)","v":0},"c"]
["6. Per quale motivo può essere sospesa la patente nautica?","a.    Per assunzione del comando in stato di ubriachezza.",null,"b.   Per mancanza a bordo delle dotazioni di sicurezza.",null,"c.    A  seguito  di  un  sinistro  marittimo  sul  quale  sia  stata  aperta  un'inchiesta  da  parte dell'Autorità Marittima.",null,"Selezionare una risposta","",null,0,0,0,0,0,"a"]
["7. La patente nautica è soggetta al bollo annuale?","a.    Sì, sempre.",null,"b.   No.",null,"c.    Sì, quando si utilizza.",null,"Selezionare una risposta","",null,0,0,0,0,0,"b"]
["8. In base a quali parametri si classificano le unità da diporto?","a.    Lunghezza fuori tutto.",null,"b.   Lunghezza fuori tutto, larghezza e altezza di costruzione.",null,"c.    Potenza dell'apparato motore, stazza e lunghezza fuori tutto.",null,"Selezionare una risposta","",null,0,0,0,0,0,"a"]
["9. Come viene classificata un'unità a motore lunga 9 metri?","a.    Natante.",null,"b.   Imbarcazione.",null,"c.    Nave.",null,"Selezionare una risposta","",null,0,0,0,0,0,"a"]
["10.  Entro quanti giorni va denunciato all'Autorità Marittima il ritrovamento di un relitto?","a.    Entro tre giorni dal ritrovamento o dall'approdo.",null,"b.   Entro 24 ore dal ritrovamento o dall' approdo.",null,"c.    Entro 7 giorni dal ritrovamento o dall'approdo.",null,"Selezionare una risposta","",null,0,0,0,0,0,"a"]
["11.  Quali sono gli elementi di individuazione della nave?","a.    Stazza, nome o numero d'iscrizione, porto d'iscrizione, nazionalità.",null,"b.   Matricola e porto d'iscrizione.",null,"c.    Nazionalità, stazza e potenza apparato motore.",null,"Selezionare una risposta","",null,0,0,0,0,0,"a"]
["12.  Può un soggetto residente a Genova immatricolare la propria imbarcazione da diporto nei registri navali della Capitaneria di Porto di Roma?","a.    Sì.",null,"b.   No.",null,"c.    Sì, se nomina un proprio rappresentante residente a Roma.",null,"Selezionare una risposta","",null,0,0,0,0,0,"a"]
["13.  Che cosa sono le acque interne marittime?","a.    I fiumi e i laghi dello Stato.",null,"b.   Le acque marittime riservate alla balneazione.",null,"c.    Le acque comprese tra la costa e la linea di base.",null,"Selezionare una risposta","",null,0,0,0,0,0,"c"]
["14.  Le imbarcazioni da diporto possono avere il Certificato Uso Motore?","a.    Sì, se dotate di motore amovibile.",null,"b.   Sì, sempre.",null,"c.    No, è previsto solo per i natanti da diporto.",null,"Selezionare una risposta","",null,0,0,0,0,0,"a"]
["15.  Che età occorre aver raggiunto per condurre gli acqua-scooter?","a.    16 anni.",null,"b.   18 anni.",null,"c.    Dipende dalla potenza del motore",null,"Selezionare una risposta","",null,0,0,0,0,0,"b"]
["16.  Le tavole a vela…","a.    Possono navigare entro un miglio dalla costa, salvo diverse prescrizioni dell'Autorità Marittima.",null,"b.   Non possono navigare senza che il conduttore sia abilitato.",null,"c.    Possono navigare entro tre miglia dalla costa.",null,"Selezionare una risposta","",null,0,0,0,0,0,"a"]
["17.  I natanti non iscritti hanno l'obbligo di esporre la bandiera nazionale?","a.    Solo in acque territoriali.",null,"b.   Sì.",null,"c.    No.",null,"Selezionare una risposta","",null,0,0,0,0,0,"c"]
["18.  I limiti di navigazione delle unità con marcatura \"CE\" si riferiscono a…….","a.    Distanza dalla costa.",null,"b.   Altezza significativa delle onde e forza del vento.",null,"c.    Omologazione dell'organo tecnico.",null,"Selezionare una risposta","",null,0,0,0,0,0,"b"]
["19.  Per quali motori è rilasciato il Certificato Uso Motore?","a.    Per  i  motori  amovibili  installati  sulle  unità  da  diporto  e  per  quelli  entrobordo  da installare sui natanti non iscritti.",null,"b.   Per tutti i tipi di motore.",null,"c.    Per i motori entrobordo e fuoribordo di potenza superiore a 40.8 CV.",null,"Selezionare una risposta","",null,0,0,0,0,0,"a"]
["20.  I  battelli  al  servizio  delle  unità  da  diporto  (tender)  a  che  distanza  dalla  costa  possono navigare?","a.    Entro 6 miglia dalla costa.",null,"b.   Entro 1 miglio dalla costa.",null,"c.    Entro 1 miglio dalla costa o dall'unità madre, ovunque si trovi.",null,"Selezionare una risposta","",null,0,0,0,0,0,"c"]
["21.  Un \"delinquente abituale\" può conseguire la patente nautica?","a.    Sì.",null,"b.   No.",null,"c.    Dipende dai delitti per i quali è stato dichiarato delinquente abituale.",null,"Selezionare una risposta","",null,0,0,0,0,0,"b"]
["22.  In quale categoria rientrano gli acquascooters?","a.    Natanti da diporto.",null,"b.   Costituiscono una categoria a sè.",null,"c.    Motoscafi ad uso privato.",null,"Selezionare una risposta","",null,0,0,0,0,0,"a"]
["23.  Quali unità da diporto devono esporre la bandiera nazionale?","a.    Le navi e le imbarcazioni.",null,"b.   Soltanto le navi.",null,"c.    Tutte.",null,"Selezionare una risposta","",null,0,0,0,0,0,"a"]
["24.  Quanti anni bisogna aver compiuto per condurre natanti a motore per i quali non è previsto l'obbligo della patente nautica?","a.    16 anni per tutti i natanti con esclusione degli acquascooter.",null,"b.   16 anni per gli acquascooter, 18 per i natanti a motore.",null,"c.    18 anni per tutti i natanti.",null,"Selezionare una risposta","",null,0,0,0,0,0,"a"]
["25.  E' obbligatorio fare la denuncia di evento straordinario.....","a.    Quando durante la navigazione si effettua un cambiamento di rotta non programmato.",null,"b.   Quando in corso di navigazione, le persone a bordo hanno corso un pericolo.",null,"c.    Quando, in corso di navigazione, si siano verificati eventi anomali relativi all'unità o alle persone a bordo.",null,"Selezionare una risposta","",null,0,0,0,0,0,"c"]
["26.  La licenza di navigazione ha validità….","a.    5 anni.",null,"b.   3 anni.",null,"c.    Fino  a  quando  non subiscono  modifiche  gli  elementi  strutturali  o  di  identificazione dell'unità da diporto.",null,"Selezionare una risposta","",null,0,0,0,0,0,"c"]
["27.  E' possibile comandare e condurre un'imbarcazione da diporto a noleggio?","a.    Sì, solo se in possesso del previsto titolo professionale di conduttore marittimo.",null,"b.   Sì, sempre.",null,"c.    No, solo se in possesso della patente nautica per nave da diporto.",null,"Selezionare una risposta","",null,0,0,0,0,0,"a"]
["28.  Quando scatta l'obbligo della patente nautica per comandare un natante da diporto?","a.    mai, perché non è necessaria la patente nautica per i natanti da diporto.",null,"b.   quando la potenza del motore supera i 40.8 CV.",null,"c.    quando la potenza del motore supera i 25 CV.",null,"Selezionare una risposta","",null,0,0,0,0,0,"b"]
["29.  Come deve comportarsi chi riceve una richiesta di soccorso?","a.    Deve dirigere immediatamente sull'unità in pericolo.",null,"b.   Deve mantenere il contatto radio con l'unità in pericolo sino all'arrivo dei soccorsi.",null,"c.    Deve  rilanciare  la  chiamata  di  soccorso  ed  eventualmente  adoperarsi  per  prestare soccorso all'unità in pericolo.",null,"Selezionare una risposta","",null,0,0,0,0,0,"c"]
["30.  I natanti denominati comunemente pattini o pedalò o mosconi, ecc… possono navigare..........","a.    Entro 2 miglia dalla costa.",null,"b.   Entro 1 miglio dalla costa.",null,"c.    Entro 6 miglia dalla costa.",null,"Selezionare una risposta","",null,0,0,0,0,0,"b"]
["31.  Il proprietario di un'imbarcazione da diporto ha facoltà di contraddistinguere la propria unità con un nome?","a.    Sì, purché sia differente da ogni altro già registrato nel medesimo circondario marittimo o ufficio della motorizzazione civile.",null,"b.   Sì, qualunque esso sia.",null,"c.    Sì, purché sia differente da ogni altro già registrato in tutto lo Stato.",null,"Selezionare una risposta","",null,0,0,0,0,0,"a"]
["32.  Un'unità che viola le disposizioni in materia di sicurezza della navigazione è soggetta....","a.    Ad una sanzione amministrativa che va da 2.066 a 8.263 euro ed alla sospensione della licenza di navigazione per 30 gg.",null,"b.   Ad una sanzione amministrativa che va da 207 a 1.033 euro.",null,"c.    Ad una sanzione amministrativa che va da 207 a 1.033 euro ed alla sospensione della licenza di navigazione per 60 gg.",null,"Selezionare una risposta","",null,0,0,0,0,0,"b"]
["33.  Qual è il limite di velocità per un'unità da diporto in transito all'interno di un porto?","a.    3 nodi.",null,"b.   6 nodi.",null,"c.    E' stabilito dall'Autorità Marittima competente per territorio.",null,{"$f":"IF(AND(C35=\"X\",E35=\"X\"),\"Selezionare una sola risposta\",IF(AND(C35=\"X\",G35=\"X\"),\"Selezionare una sola risposta\",IF(AND(E35=\"X\",G35=\"X\"),\"Selezionare una sola risposta\",IF(AND(C35=\"\",E35=\"\",G35=\"\"),\"Selezionare una risposta\",\"\"))))","v":"Selezionare una risposta"},"",null,{"$f":"IF(C35=\"X\",IF($P35=\"a\",0,1),0)","v":0},{"$f":"IF(E35=\"X\",IF($P35=\"b\",0,1),0)","v":0},{"$f":"IF(G35=\"X\",IF($P35=\"c\",0,1),0)","v":0},{"$f":"IF(H35=\"\",IF(I35=\"OK\",0,IF(I35=\"\",0,1)),0)","v":0},0,"c"]
["34.  Bisogna aver compiuto i 16 anni di età per assumere il comando e la condotta di …..","a.    Natanti a vela con superficie velica superiore a quattro metri quadrati.",null,"b.   Natanti a vela con superficie velica inferiore a quattro metri quadrati.",null,"c.    Natanti a vela con motore ausiliario.",null,"Selezionare una risposta","",null,0,0,0,0,0,"c"]
["35.  Quando un'unità da diporto deve essere sottoposta a visita occasionale?","a.    Quando l'unità viene fermata per un controllo della Capitaneria di Porto",null,"b.   Quando l'unità viene messa a mare dopo essere stata a secco.",null,"c.    A seguito di danni o mutamenti dello scafo o dell'apparato motore, se sono mutate le condizioni di navigabilità o di sicurezza.",null,"Selezionare una risposta","",null,0,0,0,0,0,"c"]
["36.  Per condurre imbarcazioni da diporto entro le 6 miglia dalla costa è obbligatoria la patente nautica?","a.    Sì.",null,"b.   Sì, se il motore è di potenza superiore a 40.8 cavalli.",null,"c.    No.",null,"Selezionare una risposta","",null,0,0,0,0,0,"b"]
["37.  In caso di assunzione del comando di un'unità da diporto con patente nautica scaduta di validità, è prevista la sospensione della patente nautica stessa?","a.    Sì, sempre.",null,"b.   No.",null,"c.    Sì, se la patente nautica è scaduta da più di 12 mesi.",null,"Selezionare una risposta","",null,0,0,0,0,0,"b"]
["38.  Il secondo motore è considerato ausiliario quando…….","a.    E' superiore a 40 CV.",null,"b.   E' inferiore a 40 CV.",null,"c.    E' di tipo amovibile, sistemato su proprio supporto con potenza non superiore al 20% di quella del motore principale.",null,"Selezionare una risposta","",null,0,0,0,0,0,"c"]
["39.  Cos'è il Manuale del proprietario?","a.    Documento contenente i dati tecnici del natante omologato CE.",null,"b.   Documento contenente i dati tecnici del natante non omologato CE.",null,"c.    Documento contenente i dati tecnici di una nave da diporto.",null,"Selezionare una risposta","",null,0,0,0,0,0,"a"]
["40.  A quali visite sono soggette le imbarcazioni da diporto rientranti nella normativa CE?","a.    Periodiche ed occasionali.",null,"b.   Iniziali, periodiche e occasionali.",null,"c.    Iniziali e finali.",null,"Selezionare una risposta","",null,0,0,0,0,0,"a"]
["41.  A chi deve essere presentata la denuncia di evento straordinario?","a.    All'Autorità Marittima o Consolare del porto di arrivo.",null,"b.   All'Autorità Giudiziaria del porto di arrivo.",null,"c.    All'Autorità Portuale del porto di arrivo.",null,"Selezionare una risposta","",null,0,0,0,0,0,"a"]
["42.  Assumere il comando di un'unità con l'abilitazione scaduta comporta....","a.    Una sanzione amministrativa che va da 2.066 a 8.263 euro e la sospensione della licenza di navigazione per 30 gg.",null,"b.   Una sanzione amministrativa che va da 207 a 1.033 euro.",null,"c.    Una sanzione amministrativa che va da 207 a 1.033 euro e la sospensione della licenza di navigazione per 60 gg.",null,"Selezionare una risposta","",null,0,0,0,0,0,"b"]
["43.  La licenza e gli altri documenti per le unità da diporto devono essere sempre tenuti a bordo in originale?","a.    No, è sufficiente avere a bordo le copie conformi all'originale, purché la navigazione avvenga tra porti nazionali.",null,"b.   No, è sufficiente avere a bordo delle copie semplici.",null,"c.    Si, salvo autorizzazione rilasciata dall'Ufficio d'iscrizione.",null,"Selezionare una risposta","",null,0,0,0,0,0,"a"]
["44.  Le imbarcazioni da diporto appartenenti alle categorie A e B possono essere iscritte presso...","a.    Gli Uffici Marittimi.",null,"b.   Gli Uffici Marittimi e gli uffici della Motorizzazione Civile.",null,"c.    Le Direzioni Marittime.",null,"Selezionare una risposta","",null,0,0,0,0,0,"a"]
["45.  Qual è il documento che abilita al comando ad alla condotta di un'unità da diporto?","a.    La licenza di abilitazione.",null,"b.   La patente nautica.",null,"c.    Il certificato di sicurezza.",null,"Selezionare una risposta","",null,0,0,0,0,0,"b"]
["46.  Occorre la patente nautica per comandare un'imbarcazione da diporto in navigazione entro 6 miglia dalla costa?","a.    No",null,"b.   Sì, sempre.",null,"c.    Sì, se la potenza del motore supera i 40.8 CV o la cilindrata supera determinati parametri.",null,"Selezionare una risposta","",null,0,0,0,0,0,"c"]
["47.  I natanti da diporto hanno l'obbligo di effettuare le visite periodiche di sicurezza?","a.    Sì.",null,"b.   No.",null,"c.    Sì, ma solo se iscritti.",null,"Selezionare una risposta","",null,0,0,0,0,0,"c"]
["48.  Un soggetto munito di patente nautica entro le 12 miglia dalla costa, può comandare un'imbarcazione da diporto abilitata a navigare senza limiti di distanza dalla costa?","a.    No, in nessun caso.",null,"b.   Sì, a patto che non superi il limite delle 12 miglia dalla costa.",null,"c.    Sì, a patto che ottenga una apposita autorizzazione, in tal senso, della Capitaneria del porto di partenza.",null,"Selezionare una risposta","",null,0,0,0,0,0,"b"]
["49.  Un'unità da diporto, avente lunghezza fuori tutto pari a 7 metri, può essere iscritta nei registri delle imbarcazioni da diporto?","a.    Sì.",null,"b.   No.",null,"c.    Sì, se con un motore di potenza superiore a 75 CV.",null,"Selezionare una risposta","",null,0,0,0,0,0,"a"]
["50.  Un  cittadino che  ha  55  anni  deve  rinnovare  la  patente;  quale  sarà  la  validità  del  nuovo documento?","a.    5 anni.",null,"b.   10 anni.",null,"c.    In conformità a quanto dichiarato dal medico legale nel certificato allegato alla domanda di rinnovo.",null,"Selezionare una risposta","",null,0,0,0,0,0,"b"]
["51.  Qual è la definizione di navigazione da diporto?","a.    Navigazione effettuata a scopi sportivi o ricreativi, dai quali esuli il fine di lucro.",null,"b.   Navigazione effettuata a scopi soltanto sportivi.",null,"c.    Navigazione effettuata a scopi ricreativi, dai quali esuli ogni forma di agonismo.",null,"Selezionare una risposta","",null,0,0,0,0,0,"a"]
["52.  Le unità da diporto possono essere utilizzate mediante contratti di locazione o di noleggio?","a.    No.",null,"b.   Sì, soltanto le imbarcazioni e i natanti da diporto.",null,"c.    Sì.",null,"Selezionare una risposta","",null,0,0,0,0,0,"c"]
["53.  Qual è il limite di validità temporale delle patenti nautiche?","a.    10 anni se non si è superato il 60° anno di età, 5 anni se si è superato tale limite d'età.",null,"b.   10 anni se non si è superato il 50° anno di età, 5 anni se si è superato tale limite d'età.",null,"c.    10 anni per tutti.",null,"Selezionare una risposta","",null,0,0,0,0,0,"a"]
["54.  Assumere il comando di un'unità senza l'abilitazione prevista comporta....","a.    Una sanzione amministrativa che va da 2.066 a 8.263 euro e la sospensione della licenza di navigazione per 30 gg.",null,"b.   Una sanzione amministrativa che va da 207 a 1.033 euro.",null,"c.    Una sanzione amministrativa che va da 207 a 1.033 euro e la sospensione della licenza di navigazione per 60 gg.",null,"Selezionare una risposta","",null,0,0,0,0,0,"a"]
["55.  Può un' imbarcazione da diporto recarsi all'estero?","a.    Sì.",null,"b.   Sì, se in possesso di specifica autorizzazione.",null,"c.    No.",null,"Selezionare una risposta","",null,0,0,0,0,0,"a"]
["56.  Chi rilascia il certificato di sicurezza per unità da diporto?","a.    L'Autorità Marittima o della Navigazione interna competente.",null,"b.   Il RINA",null,"c.    La ditta costruttrice dello scafo.",null,"Selezionare una risposta","",null,0,0,0,0,0,"a"]
["57.  In quale categoria rientrano le unità da diporto a remi?","a.    Natanti.",null,"b.   Natanti, imbarcazioni o navi a seconda della lunghezza.",null,"c.    Costituiscono una categoria a sé.",null,"Selezionare una risposta","",null,0,0,0,0,0,"a"]
["58.  E' previsto l'obbligo di patente nautica per gli acquascooters?","a.    No, mai.",null,"b.   Sì, sempre",null,"c.    Sì, se di potenza superiore a 40.8 cavalli.",null,"Selezionare una risposta","",null,0,0,0,0,0,"c"]
["59.  Chi deve redigere la dichiarazione di evento straordinario?","a.    Chiunque sia delegato dal comandante dell'unità.",null,"b.   Il comandante dell'unità.",null,"c.    Un qualsiasi membro dell'equipaggio.",null,"Selezionare una risposta","",null,0,0,0,0,0,"b"]
["60.  Come è classificata un'unità da diporto di m. 25 lft.?","a.    Imbarcazione da diporto.",null,"b.   Nave da diporto.",null,"c.    Natante omologato CE.",null,"Selezionare una risposta","",null,0,0,0,0,0,"b"]
["61.  Quando sulla carta nautica è segnalato un cavo sottomarino ….","a.    Navi e imbarcazioni devono spegnere i motori se sostano in quella zona.",null,"b.   I pescherecci devono evitare di calare a mare le reti.",null,"c.    C'è assoluto divieto di ancoraggio nella zona fino a tre miglia adiacenti al cavo",null,"Selezionare una risposta","",null,0,0,0,0,0,"b"]
["62.  A chi spetta verificare prima della partenza che le dotazioni di sicurezza di un'unità da diporto siano efficienti?","a.    Alle Autorità Marittime.",null,"b.   Al Registro Italiano Navale al momento di visita a bordo.",null,"c.    Al comandante dell'unità.",null,"Selezionare una risposta","",null,0,0,0,0,0,"c"]
["63.  Dove si effettuano le prove di velocità?","a.    Immediatamente fuori dei porti.",null,"b.   Lungo le basi misurate.",null,"c.    In appositi corridoi delimitati da boe.",null,"Selezionare una risposta","",null,0,0,0,0,0,"b"]
["64.  Comandare un'imbarcazione senza patente ……","a.    E’ un illecito amministrativo.",null,"b.   E’ un reato per il quale è previsto l'arresto o l'ammenda.",null,"c.    Comporta la denuncia al Comando dei Carabinieri.",null,"Selezionare una risposta","",null,0,0,0,0,0,"a"]
["65.  L’obbligo giuridico del soccorso è rivolto ……………","a.    Solo alle imbarcazioni che si trovano nel raggio di 1 miglio dall'imbarcazione da soccorrere.",null,"b.   Solo alle imbarcazioni che si trovano nel raggio di 1.5 miglia dall'imbarcazione da soccorrere.",null,"c.    A chiunque sia in grado di prestare soccorso.",null,{"$f":"IF(AND(C67=\"X\",E67=\"X\"),\"Selezionare una sola risposta\",IF(AND(C67=\"X\",G67=\"X\"),\"Selezionare una sola risposta\",IF(AND(E67=\"X\",G67=\"X\"),\"Selezionare una sola risposta\",IF(AND(C67=\"\",E67=\"\",G67=\"\"),\"Selezionare una risposta\",\"\"))))","v":"Selezionare una risposta"},"",null,{"$f":"IF(C67=\"X\",IF($P67=\"a\",0,1),0)","v":0},{"$f":"IF(E67=\"X\",IF($P67=\"b\",0,1),0)","v":0},{"$f":"IF(G67=\"X\",IF($P67=\"c\",0,1),0)","v":0},{"$f":"IF(H67=\"\",IF(I67=\"OK\",0,IF(I67=\"\",0,1)),0)","v":0},0,"c"]
["66.  L’inosservanza dei divieti segnalati di interdizione alla navigazione ….….","a.    E’ un illecito amministrativo punito con la sola ammenda.",null,"b.   E’ un reato per il quale è previsto l'arresto o l'ammenda.",null,"c.    Prevede una sanzione pecuniaria ed il sequestro del natante.",null,"Selezionare una risposta",{"$f":"IF(O68=0,\"\",IF((K68+L68+M68)=0,IF(AND(C68=\"\",E68=\"\",G68=\"\"),\"\",\"OK\"),\"Errore. Risposta corretta '\"&P68&\"'\"))","v":""},null,0,0,0,0,0,"b"]
["67.  L’inquinamento da idrocarburi……","a.    E’ un illecito amministrativo punito con la sola ammenda.",null,"b.   E’ un reato per il quale è previsto l'arresto o l'ammenda.",null,"c.    Comporta la sospensione della patente.",null,"Selezionare una risposta","",null,0,0,0,0,0,"b"]
["68.  In caso di evento straordinario, all'arrivo in porto il Comandante deve ……..","a.    Presentare all'Autorità Marittima la denuncia di Evento Straordinario.",null,"b.   Entro 30 giorni presentare al Pretore la relazione di Evento Straordinario.",null,"c.    Chiamare il 1530 perché la Guardia Costiera faccia un sopralluogo all'imbarcazione e compili il verbale di Evento Straordinario.",null,"Selezionare una risposta","",null,0,0,0,0,0,"a"]
["69.  L’imbarco di persone oltre il limite consentito……","a.    E’ un illecito amministrativo punito con la sola ammenda.",null,"b.   E’ un reato per il quale è previsto l'arresto o l'ammenda.",null,"c.    Comporta la sospensione della patente.",null,"Selezionare una risposta","",null,0,0,0,0,{"$f":"IF(H71=\"\",1,0)","v":0},"a"]
["70.  Quale tra le seguenti affermazioni è vera?","a.    Il Comandante è l'unico responsabile della sicurezza dell'imbarcazione e delle persone bordo.",null,"b.   Ogni membro dell'equipaggio è corresponsabile della sicurezza dell'imbarcazione e delle persone bordo.",null,"c.    Il Comandante è l'unico responsabile della sicurezza dell'imbarcazione ma ogni membro dell'equipaggio è corresponsabile della sicurezza delle persone bordo.",null,"Selezionare una risposta","",null,0,0,0,0,0,"a"]
["71.  L’assistenza in mare si verifica quando ………","a.    L’unità soccorsa non è in grado di collaborare.",null,"b.   L’unità soccorsa ha lanciato il May Day.",null,"c.    L’unità soccorsa riesce collaborare.",null,"Selezionare una risposta","",null,0,0,0,0,0,"c"]
["72.  L’ingiustificata omissione di soccorso ……….","a.    Costituisce reato.",null,"b.   Deve essere giustificata entro 36 ore presso la Stazione Carabinieri di residenza.",null,"c.    Comporta una sanzione amministrativa.",null,"Selezionare una risposta","",null,0,0,0,0,0,"a"]
["73.  Condurre un'imbarcazione sotto l'effetto di sostanze stupefacenti……","a.    E’ un illecito amministrativo punito con la sola ammenda.",null,"b.   E’ consentito.",null,"c.    Comporta la sospensione della patente.",null,"Selezionare una risposta","",null,0,0,0,0,0,"c"]
["74.  L’ancora galleggiante ……..","a.    Filata di prua aumenta la corsa dell'imbarcazione.",null,"b.   Serve mantenersi alla cappa.",null,"c.    E’ usata solo in caso di soccorso.",null,"Selezionare una risposta","",null,0,0,0,0,0,"b"]
["75.  La condotta di imbarcazione senza licenza di navigazione…..","a.    E’ un illecito amministrativo punito con la sola ammenda.",null,"b.   E’ un reato per il quale è previsto l'arresto o l'ammenda.",null,"c.    Comporta la sospensione della patente.",null,"Selezionare una risposta","",null,0,0,0,0,0,"a"]
["76.  La condotta di imbarcazione con patente scaduta…. ….","a.    E’ un illecito amministrativo punito con la sola ammenda.",null,"b.   E’ un reato per il quale è previsto l'arresto o l'ammenda.",null,"c.    Comporta la sospensione della patente.",null,"Selezionare una risposta","",null,0,0,0,0,0,"a"]
["77.  La navigazione oltre i limiti consentiti.........","a.    E’ un illecito amministrativo punito con la sola ammenda.",null,"b.   E’ un reato per il quale è previsto l'arresto o l'ammenda.",null,"c.    Comporta la sospensione della patente.",null,"Selezionare una risposta","",null,0,0,0,0,0,"a"]
["78.  Il comando senza patente...","a.    Comporta un procedimento penale con l'arresto da 5 giorni fino 6 mesi.",null,"b.   Comporta una multa fino 1032 euro.",null,"c.    Comporta una multa fino 1032 euro e la possibilità di un fermo barca fino 30 giorni.",null,"Selezionare una risposta","",null,0,0,0,0,0,"c"]
["79.  Non avere a bordo le dotazioni di sicurezza previste.....","a.    E’ un illecito amministrativo punito con la sola ammenda.",null,"b.   E’ un reato per il quale è previsto l'arresto o l'ammenda.",null,"c.    Comporta la sospensione della patente.",null,"Selezionare una risposta","",null,0,0,0,0,0,"a"]
["80.  Il comando con patente scaduta comporta...","a.    Il sequestro dell'unità.",null,"b.   Il fermo per 30 giorni dell'unità.",null,"c.    Una sanzione variabile da 207 1033 euro.",null,"Selezionare una risposta","",null,0,0,0,0,0,"c"]
["81.  Il salvataggio è obbligatorio....","a.    Sempre e comunque.",null,"b.   Se è d'accordo l'armatore della nave soccorritrice.",null,"c.    Se è possibile senza grave rischio della nave soccorritrice, del suo equipaggio e dei suoi passeggeri, ai sensi dell'art. 490 del Codice della Navigazione.",null,"Selezionare una risposta","",null,0,0,0,0,0,"c"]
["82.  Per definizione il salvataggio in mare si verifica quando.............","a.    L’unità soccorsa non è in grado di collaborare.",null,"b.   L’unità soccorsa riesce collaborare.",null,"c.    L’unità soccorsa ha lanciato il SECURITE’.",null,"Selezionare una risposta","",null,0,0,0,0,0,"a"]
["83.  Il salvataggio dei mezzi.............","a.    E’ carico del Corpo delle Capitanerie di Porto.",null,"b.   E’ lasciato ai liberi rapporti contrattuali tra soggetti privati.",null,"c.    E’ carico del Corpo dei Vigili del Fuoco.",null,"Selezionare una risposta","",null,0,0,0,0,0,"b"]
["84.  L’obbligo del soccorso cessa al momento in cui........","a.    La persona è certamente deceduta.",null,"b.   L’imbarcazione è stata ritrovata.",null,"c.    L’imbarcazione è già affondata.",null,"Selezionare una risposta","",null,0,0,0,0,0,"a"]
["85.  Prima della partenza il Comandante deve.........","a.    Cercare la rotta più breve e sicura.",null,"b.   Prendere visione del Registro degli Avvisi ai Naviganti presso gli uffici dell'Autorità Portuale.",null,"c.    Pagare la tassa di partenza.",null,"Selezionare una risposta","",null,0,0,0,0,0,"a"]
["86.  Durante la navigazione il Comandante deve..........","a.    Ascoltare regolarmente i bollettini Meteomar.",null,"b.   Comunicare all'Autorità Marittima la sua posizione ogni 30' sul Canale 16.",null,"c.    Comunicare all'Autorità Marittima la sua posizione ogni 30' sul Canale 68.",null,"Selezionare una risposta","",null,0,0,0,0,0,"a"]
["87.  Prima della partenza il Comandante deve.............","a.    Informarsi sulle previsioni del tempo.",null,"b.   Presentare all' Autorità Marittima la denuncia di Evento Straordinario.",null,"c.    Pagare la tassa di partenza.",null,"Selezionare una risposta","",null,0,0,0,0,0,"a"]
["88.  Un' imbarcazione che presta soccorso.......","a.    Ha diritto al rimborso.",null,"b.   Ha diritto ad una medaglia.",null,"c.    Non ha diritto al rimborso.",null,"Selezionare una risposta","",null,0,0,0,0,0,"a"]
["89.  Il Corpo delle Capitanerie di Porto presta soccorso impiegando............","a.    I propri mezzi e quelli delle diversi Amministrazioni.",null,"b.   Esclusivamente i propri mezzi.",null,"c.    I propri mezzi, quelli delle diverse Amministrazioni e quelli privati.",null,"Selezionare una risposta","",null,0,0,0,0,0,"c"]
["90.  Chi conduce un'unità da diporto nell'esercizio dello sci nautico deve essere in possesso di patente nautica?","a.    Sì.",null,"b.   No.",null,"c.    Dipende dalla lunghezza dell'unità e dalla potenza del motore.",null,"Selezionare una risposta","",null,0,0,0,0,0,"a"]
["91.  Nello sci nautico, oltre al conduttore, quante persone devono trovarsi a bordo dell'unità?","a.    Nessuno.",null,"b.   Una, esperta nel nuoto.",null,"c.    Una, esperta nello sci nautico.",null,"Selezionare una risposta","",null,0,0,0,0,0,"b"]
["92.  Lo sci nautico è praticabile................","a.    Entro un miglio dalla costa.",null,"b.   Oltre 200 metri dalla batimetrica di 1,60 metri, salvo diverse disposizioni dell'Autorità Marittima.",null,"c.    Oltre 100 metri dalla batimetrica di 1,60 metri, salvo diverse disposizioni dell'Autorità Marittima.",null,"Selezionare una risposta","",null,0,0,0,0,0,"b"]
["93.  E' possibile praticare lo sci nautico….","a.    In ore diurne, con tempo favorevole e mare calmo.",null,"b.   Anche in ore notturne se si dispone di un proiettore omologato.",null,"c.    Sempre.",null,"Selezionare una risposta","",null,0,0,0,0,0,"a"]
["94.  Qual è la distanza minima tra lo sciatore nautico e il mezzo trainante?","a.    20 metri.",null,"b.   12 metri.",null,"c.    15 metri.",null,"Selezionare una risposta","",null,0,0,0,0,0,"b"]
["95.  L'unità con la quale viene praticato lo sci nautico deve essere.....","a.    Un'unità immatricolata.",null,"b.   Un'unità omologata CE.",null,"c.    Qualsiasi tipo di unità da diporto.",null,"Selezionare una risposta","",null,0,0,0,0,0,"c"]
["96.  Se lo sci nautico è effettuato con un natante da diporto, il comandante dell'unità deve avere…..","a.    Il brevetto di nuoto e voga.",null,"b.   Il brevetto di salvamento.",null,"c.    La patente nautica.",null,"Selezionare una risposta","",null,0,0,0,0,0,"c"]
["97.  Che distanza deve esserci tra l'imbarcazione con cui si pratica sci nautico e lo sciatore?","a.    Almeno 5 metri.",null,"b.   Almeno 12 metri.",null,"c.    Almeno 10 metri.",null,{"$f":"IF(AND(C99=\"X\",E99=\"X\"),\"Selezionare una sola risposta\",IF(AND(C99=\"X\",G99=\"X\"),\"Selezionare una sola risposta\",IF(AND(E99=\"X\",G99=\"X\"),\"Selezionare una sola risposta\",IF(AND(C99=\"\",E99=\"\",G99=\"\"),\"Selezionare una risposta\",\"\"))))","v":"Selezionare una risposta"},"",null,{"$f":"IF(C99=\"X\",IF($P99=\"a\",0,1),0)","v":0},{"$f":"IF(E99=\"X\",IF($P99=\"b\",0,1),0)","v":0},{"$f":"IF(G99=\"X\",IF($P99=\"c\",0,1),0)","v":0},0,0,"b"]
["98.  I mezzi utilizzati per effettuare lo sci nautico devono essere muniti di……..","a.    Cassetta di pronto soccorso.",null,"b.   Dispositivi supplementari per il segnalamento acustico.",null,"c.    Mezzi che consentano una facile risalita a bordo.",null,"Selezionare una risposta","",null,0,0,0,0,0,"a"]
["99.  Si può esercitare attività di pesca sportiva con un'unità da diporto?","a.    Sì.",null,"b.   No.",null,"c.    Sì, solo con un'unità iscritta.",null,"Selezionare una risposta","",null,0,0,0,0,0,"a"]
["100. Qual è l'età minima necessaria per praticare la pesca col fucile subacqueo?","a.    18 anni.",null,"b.   21 anni.",null,"c.    16 anni.",null,"Selezionare una risposta","",null,0,0,0,0,0,"c"]
["101. Qual è la distanza massima che intercorre tra il pescatore subacqueo e la boa di segnalazione?","a.    Una distanza di 100 metri.",null,"b.   Una distanza di 50 metri.",null,"c.    Una distanza di 200 metri.",null,"Selezionare una risposta","",null,0,0,0,0,0,"b"]
["102. Il pescatore sportivo ha limitazioni di cattura?","a.    No.",null,"b.   Sì, 3 kg eccetto il caso di pesce singolo di peso superiore.",null,"c.    Sì, 5 kg eccetto il caso di pesce singolo di peso superiore ed in caso di manifestazioni sportive autorizzate.",null,"Selezionare una risposta","",null,0,0,0,0,0,"c"]
["103. A quale distanza dalla costa si può effettuare la pesca subacquea ?","a.    Oltre 500 metri dalle spiagge frequentate dai bagnanti.",null,"b.   Entro 100 metri dalle spiagge frequentate dai bagnanti. ",null,"c.    Non esistono limiti di distanza.",null,"Selezionare una risposta","",null,0,0,0,0,0,"a"]
["104.  La pesca subacquea con fucile si può effettuare nelle ore notturne?","a.    No, mai.",null,"b.   Sì, purchè in prossimità di un'unità di appoggio.",null,"c.    Sì, se il pescatore è segnalato da una fonte di luce.",null,"Selezionare una risposta","",null,0,0,0,0,0,"a"]
["105. E' ammesso l'uso di fonti luminose per l'esercizio della pesca sportiva?","a.    No.",null,"b.   Sì, per la pesca sportiva subacquea in ore notturne.",null,"c.    Sì, per la pesca sportiva di superficie con la fiocina a mano.",null,"Selezionare una risposta","",null,0,0,0,0,0,"c"]
["106. E' consentito praticare pesca professionale a bordo delle unità da diporto?","a.    No.",null,"b.   Sì.",null,"c.    Sì, a seguito di rilascio del previsto permesso di pesca.",null,"Selezionare una risposta","",null,0,0,0,0,0,"a"]

{"sheet":"Test sicurezza fari","index":1,"n_rows":74,"n_cols":17,"rows_kept":74}
["                                                      ","      Test su Dotazioni Sicurezza, Radio, Bandiere, Fari e Fanali (72 quesiti)",{"$nulls":5},{"$f":"O1&\" domande completate \"&\"su 72 quesiti\"","v":"0 domande completate su 72 quesiti"},{"$f":"N1&\"   Errori su            \"&O1&\"   Risposte\"","v":"0   Errori su            0   Risposte"},{"$nulls":4},{"$f":"SUM(N3:N74)","v":0},{"$f":"SUM(O3:O74)","v":0}]
["TESTO DELLA DOMANDA","RISPOSTA 1","SelezioneRisposta 1","RISPOSTA 2","Selezione Risposta 2","RISPOSTA 3","SelezioneRisposta    3","Domanda completata","Esito di ogni risposta",null,"Esito 1 (1=errore)","Esito 2 (1=errore)","Esito 3 (1=errore)","Domande con rispsoste errate","Domande completate"]
["107. Quando è obbligatorio avere a bordo un apparato VHF?","a. Quando si naviga entro 6 miglia dalla costa.",null,"b. Quando si naviga oltre 6 miglia dalla costa.",null,"c. Quando si naviga entro 3 miglia dalla costa.",null,{"$f":"IF(AND(C3=\"X\",E3=\"X\"),\"Selezionare una sola risposta\",IF(AND(C3=\"X\",G3=\"X\"),\"Selezionare una sola risposta\",IF(AND(E3=\"X\",G3=\"X\"),\"Selezionare una sola risposta\",IF(AND(C3=\"\",E3=\"\",G3=\"\"),\"Selezionare una risposta\",\"\"))))","v":"Selezionare una risposta"},{"$f":"IF(O3=0,\"\",IF((K3+L3+M3)=0,IF(AND(C3=\"\",E3=\"\",G3=\"\"),\"\",\"OK\"),\"Errore. Risposta corretta '\"&P3&\"'\"))","v":""},null,{"$f":"IF(C3=\"X\",IF($P3=\"a\",0,1),0)","v":0},{"$f":"IF(E3=\"X\",IF($P3=\"b\",0,1),0)","v":0},{"$f":"IF(G3=\"X\",IF($P3=\"c\",0,1),0)","v":0},{"$f":"IF(H3=\"\",IF(I3=\"OK\",0,IF(I3=\"\",0,1)),0)","v":0},{"$f":"IF(H3=\"\",1,0)","v":0},"b"]
["108. Quando è obbligatorio l'E.P.I.R.B. (Emergency Position Indicator Radio Beacon)?","a. Entro 12 miglia dalla costa.",null,"b. Entro 50 miglia dalla costa.",null,"c. Oltre 50 miglia dalla costa.",null,{"$f":"IF(AND(C4=\"X\",E4=\"X\"),\"Selezionare una sola risposta\",IF(AND(C4=\"X\",G4=\"X\"),\"Selezionare una sola risposta\",IF(AND(E4=\"X\",G4=\"X\"),\"Selezionare una sola risposta\",IF(AND(C4=\"\",E4=\"\",G4=\"\"),\"Selezionare una risposta\",\"\"))))","v":"Selezionare una risposta"},{"$f":"IF(O4=0,\"\",IF((K4+L4+M4)=0,IF(AND(C4=\"\",E4=\"\",G4=\"\"),\"\",\"OK\"),\"Errore. Risposta corretta '\"&P4&\"'\"))","v":""},null,{"$f":"IF(C4=\"X\",IF($P4=\"a\",0,1),0)","v":0},{"$f":"IF(E4=\"X\",IF($P4=\"b\",0,1),0)","v":0},{"$f":"IF(G4=\"X\",IF($P4=\"c\",0,1),0)","v":0},{"$f":"IF(H4=\"\",IF(I4=\"OK\",0,IF(I4=\"\",0,1)),0)","v":0},{"$f":"IF(H4=\"\",1,0)","v":0},"c","X"]
["109. L'operazione dei \"giribussola\" viene fatta da....","a. Un perito nautico.",null,"b. Un perito compensatore.",null,"c. Un tecnico del RINa.",null,"Selezionare una risposta","",null,0,0,0,0,0,"b"]
["110. Ogni quanto tempo va revisionata una zattera di salvataggio?","a. Ogni anno.",null,"b. Ogni due anni.",null,"c. Ogni tre anni.",null,"Selezionare una risposta","",null,0,0,0,0,0,"b"]
["111. La \"boetta fumogena arancione\" è un segnale……….","a. Diurno.",null,"b. Notturno.",null,"c. Lo si può utilizzare solo in presenza di nebbia.",null,"Selezionare una risposta","",null,0,0,0,0,0,"a"]
["112. Secondo il Regolamento di Sicurezza, quali sono le dotazioni luminose d'emergenza per le imbarcazioni abilitate a navigare entro le 12 miglia?","a. 1 boetta luminosa, 2 fuochi a mano a luce rossa, 2 razzi a paracadute a luce rossa.",null,"b. 2 fuochi a mano a luce rossa, 1 boetta luminosa.",null,"c. 3 fuochi a mano a luce rossa, 3 razzi a paracadute a luce rossa.",null,"Selezionare una risposta","",null,0,0,0,0,0,"a"]
["113. Quanti fuochi a mano a luce rossa devono obbligatoriamente essere tenuti a bordo di un'unità che naviga entro 12 miglia?","a. 5.",null,"b. 2.",null,"c. 3.",null,"Selezionare una risposta","",null,0,0,0,0,0,"b"]
["114. Secondo il Regolamento di Sicurezza, quali sono i mezzi individuali di salvataggio?","a. Zattere di salvataggio.",null,"b. Cinture di salvataggio per ogni persona imbarcata.",null,"c. Un salvagente munito di una cima lunga 30 mt. con una boetta luminosa, sistemato in luogo di facile accesso.",null,"Selezionare una risposta","",null,0,0,0,0,0,"b"]
["115. In caso di richiesta di soccorso, quando vengono impiegati i \"segnali di soccorso a razzo\"?","a. Sempre.",null,"b. Solo quando sono ben visibili le luci di una nave, di un aereo, della costa.",null,"c. Quando si presume la presenza di una nave, di un aereo o della costa.",null,"Selezionare una risposta","",null,0,0,0,0,0,"c"]
["116. Secondo il Regolamento di Sicurezza, quante boette fumogene deve avere un'imbarcazione abilitata a navigare entro le 12 miglia?","a. Tre.",null,"b. Due.",null,"c. Una.",null,"Selezionare una risposta","",null,0,0,0,0,0,"b"]
["117. L'apparato radio VHF è obbligatorio per le unità da diporto che navigano....","a. Entro 6 miglia dalla costa.",null,"b. Entro 12 miglia dalla costa.",null,"c. Entro 1 miglio dalla costa.",null,"Selezionare una risposta","",null,0,0,0,0,0,"b"]
["118. In caso di richiesta di soccorso, quando vengono impiegati i \"fuochi a mano\"?","a. Quando sono ben visibili le luci di una nave, di un aereo, della costa.",null,"b. Sempre.",null,"c. Quando si presume la presenza di una nave, di un aereo o della costa.",null,"Selezionare una risposta","",null,0,0,0,0,0,"a"]
["119. In caso di navigazione con tempo cattivo non è utile…..","a. Accertarsi che gli apparecchi di radiocomunicazione siano efficienti.",null,"b. Assicurare con cinture di sicurezza gli addetti alle manovre.",null,"c. Mettere subito il motore in folle.",null,"Selezionare una risposta","",null,0,0,0,0,0,"c"]
["120. Un aereo che lancia razzi luce verde………","a. Ordina di allontanarsi perché per un'avaria sta cadendo in mare.",null,"b. Ordina di allontanarsi perché la zona è pericolosa.",null,"c. Ha un importante messaggio da trasmettervi via radio.",null,"Selezionare una risposta","",null,0,0,0,0,0,"c"]
["121. L’ancora galleggiante ……..","a. Filata fuori bordo consente di tenersi alla cappa.",null,"b. E’ usata solo in caso di soccorso.",null,"c. Aumenta la velocità.",null,"Selezionare una risposta","",null,0,0,0,0,0,"a"]
["122. Secondo il Regolamento di Sicurezza, quali sono le dotazioni luminose d'emergenza per le imbarcazioni abilitate navigare entro le 12 miglia?","a. 3 fuochi mano luce rossa, 3 razzi paracadute luce rossa, 1 boetta luminosa.",null,"b. 3 fuochi mano luce rossa, 3 razzi paracadute luce rossa.",null,"c. 2 fuochi mano luce rossa, 2 razzi paracadute luce rossa, 1 boetta luminosa.",null,"Selezionare una risposta","",null,0,0,0,0,0,"c"]
["123. Gli apparecchi galleggianti sono obbligatori per…….","a. La navigazione oltre 50 miglia.",null,"b. La navigazione entro 12 miglia.",null,"c. La navigazione entro 6 miglia.",null,"Selezionare una risposta","",null,0,0,0,0,0,"b"]
["124. Quanti estintori devono trovarsi bordo di natanti da diporto che navigano entro le 6 miglia dalla costa?","a. Uno.",null,"b. Nessuno.",null,"c. Non meno di due.",null,"Selezionare una risposta","",null,0,0,0,0,0,"a"]
["125. L'incendio di classe C è generato da...........","a. Particolari metalli infiammabili.",null,"b. Apparecchiature elettriche.",null,"c. Gas infiammabili.",null,"Selezionare una risposta","",null,0,0,0,0,0,"c"]
["126. L' incendio di classe B è generato da........","a. Gas infiammabili.",null,"b. Apparecchiature elettriche in tensione.",null,"c. Liquidi infiammabili.",null,"Selezionare una risposta","",null,0,0,0,0,0,"c"]
["127. Quando si sviluppa un incendio a bordo, in vicinanza di un porto, è giusto accelerare per raggiungere al più presto il porto?","a. No.",null,"b. Sì.",null,"c. Sì, se il porto è attrezzato per l'estinzione di incendi a bordo di unità.",null,"Selezionare una risposta","",null,0,0,0,0,0,"a"]
["128. L'introduzione di aria in un locale aggredito da incendio determina……..","a. Il raffreddamento del locale.",null,"b. Nessuna reazione.",null,"c. Alimentazione dell'incendio.",null,"Selezionare una risposta","",null,0,0,0,0,0,"c"]
["129. Per quale classe di fuochi può essere utilizzato un estintore a CO2?","a. Per incendi della classe A.",null,"b. Per incendi delle classi C ed E.",null,"c. Per incendi della classe B.",null,"Selezionare una risposta","",null,0,0,0,0,0,"b"]
["130. L'incendio di classe D è generato da............","a. Particolari metalli infiammabili.",null,"b. Combustibili solidi.",null,"c. Liquidi infiammabili.",null,"Selezionare una risposta","",null,0,0,0,0,0,"a"]
["131. L'incendio di classe E è generato da..............","a. Combustibili solidi.",null,"b. Apparecchiature elettriche in tensione.",null,"c. Liquidi infiammabili.",null,"Selezionare una risposta","",null,0,0,0,0,0,"b"]
["132. Per quale classe di fuochi può essere utilizzato un estintore a schiuma?","a. Per incendi delle classi A e B.",null,"b. Per tutti i tipi di incendio.",null,"c. Per incendi di classe E.",null,"Selezionare una risposta","",null,0,0,0,0,0,"a"]
["133. Quali estintori devono essere omologati R.I.Na.?","a. Tutti.",null,"b. Nessuno.",null,"c. Solo quelli a CO2.",null,"Selezionare una risposta","",null,0,0,0,0,0,"a"]
["134. L'incendio di classe A è generato da...............","a. Combustibili solidi.",null,"b. Gas infiammabili.",null,"c. Particolari metalli infiammabili.",null,"Selezionare una risposta","",null,0,0,0,0,0,"a"]
["135. In caso di incendio indomabile…………","a. E’ necessario abbandonare la nave.",null,"b. Si deve rimanere bordo fino all'arrivo dei VV.F..",null,"c. Si deve entrare quanto prima possibile nel porto per facilitare l'intervento dei VV. F..",null,"Selezionare una risposta","",null,0,0,0,0,0,"a"]
["136. Per prevenire l'incendio bordo, quale tra le seguenti cose non è utile?","a. Pulire regolarmente la sentina.",null,"b. Evitare perdite di carburante.",null,"c. Chiudere e riaprire periodicamente la valvola del carburante.",null,"Selezionare una risposta","",null,0,0,0,0,0,"c"]
["137. In caso di incendio a bordo………","a. E’ necessario chiudere la valvola del carburante.",null,"b. E’ necessario porre l'imbarcazione con le fiamme sopravvento.",null,"c. E’ necessario porre l'imbarcazione con le persone sottovento.",null,"Selezionare una risposta","",null,0,0,0,0,0,"a"]
["138. In caso di incendio a bordo.....","a. E' necessario spegnere subito, anche con l'acqua, le apparecchiature elettriche in tensione.",null,"b. E' necessario porre l'imbarcazione con le fiamme sottovento.",null,"c. E' necessario porre l'imbarcazione con le fiamme sopravento.",null,"Selezionare una risposta","",null,0,0,0,0,0,"b"]
["139. Il nominativo internazionale della stazione radiotelefonica a bordo dell'unità da diporto è rilasciato…..","a. Dal Ministero delle Comunicazioni.",null,"b. Dal Ministero delle Infrastrutture e dei Trasporti.",null,"c. Dal Ministero della Difesa tramite i suoi Uffici Marittimi.",null,"Selezionare una risposta","",null,0,0,0,0,0,"c"]
["140. A cosa serve l'indicativo di chiamata?","a. Per poter utilizzare l'apparato VHF a bordo di un natante non iscritto.",null,"b. Per poter utilizzare l'apparato VHF a bordo di un'imbarcazione.",null,"c. Per poter utilizzare l'apparato VHF a bordo di una nave.",null,"Selezionare una risposta","",null,0,0,0,0,0,"a"]
["141. Per installare a bordo un VHF di tipo fisso...","a. Bisogna farlo collaudare da un tecnico del Ministero delle Comunicazioni.",null,"b. E' sufficiente controllare che sia omologato.",null,"c. Dopo l'installazione bisogna chiedere un'ispezione alla locale Autorità Marittima.",null,"Selezionare una risposta","",null,0,0,0,0,0,"b"]
["142. A cosa serve il nominativo internazionale?","a. Per poter utilizzare l'apparato VHF a bordo di un natante.",null,"b. Per poter utilizzare l'apparato VHF a bordo di imbarcazioni e navi.",null,"c. Per identificare un natante non iscritto che naviga fuori dalle acque nazionali.",null,"Selezionare una risposta","",null,0,0,0,0,0,"b"]
["143. Gli apparati ricetrasmittenti installati a bordo ogni quanto tempo sono sottoposti ad ispezioni ordinarie?","a. Ogni 5 anni.",null,"b. Ogni 10 anni.",null,"c. Sono esonerati dalle ispezioni ordinarie.",null,"Selezionare una risposta","",null,0,0,0,0,0,"c"]
["144. Per rilanciare una richiesta di soccorso ricevuta da un'altra unità si utilizza il messaggio...","a. Mayday refrain ripetuto tre volte.",null,"b. Mayday rescue ripetuto tre volte.",null,"c. Mayday relay ripetuto tre volte.",null,"Selezionare una risposta","",null,0,0,0,0,0,"c"]
["145. Il canale 16 del VHF...","a. Deve essere utilizzato solo in caso di comunicazioni riguardanti la sicurezza.",null,"b. Se non ci sono situazioni di emergenza può essere utilizzato tranquillamente.",null,"c. Deve essere utilizzato solo per la prima chiamata; bisogna poi spostarsi su un altro canale.",null,"Selezionare una risposta","",null,0,0,0,0,0,"c"]
["146. La chiamata di soccorso è preceduta dalla parola………","a. SECURITE' ripetuta tre volte.",null,"b. PAN ripetuta tre volte.",null,"c. MAYDAY ripetuta tre volte.",null,"Selezionare una risposta","",null,0,0,0,0,0,"c"]
["147. La chiamata di urgenza è preceduta dalla parola……..","a. SECURITE' ripetuta tre volte.",null,"b. PAN ripetuta tre volte.",null,"c. MAYDAY ripetuta tre volte.",null,"Selezionare una risposta","",null,0,0,0,0,0,"b"]
["148. Qual è la procedura per trasmettere un messaggio di soccorso?","a. Il messaggio di soccorso deve essere seguito dalla parola MAYDAY ripetuta tre volte.",null,"b. Il messaggio di soccorso deve essere preceduto dalla parola MAYDAY ripetuta tre volte.",null,"c. Il messaggio di soccorso deve essere preceduto dalla parola SECURITE' e seguito dalla parola MAYDAY.",null,"Selezionare una risposta","",null,0,0,0,0,0,"b"]
["149. Quando vi è l'obbligo del silenzio radio sulle frequenze di chiamata e soccorso?","a. I primi 5 minuti di ogni ora.",null,"b. Non esiste alcun obbligo.",null,"c. I primi 3 minuti di ogni mezz'ora.",null,"Selezionare una risposta","",null,0,0,0,0,0,"c"]
["150. La chiamata di sicurezza è preceduta dalla parola………","a. SECURITE' ripetuta tre volte.",null,"b. PAN ripetuta tre volte.",null,"c. MAYDAY ripetuta tre volte.",null,"Selezionare una risposta","",null,0,0,0,0,0,"a"]
["151. Il canale radio VHF/FM utilizzato per le chiamate di soccorso è………","a. Canale 18.",null,"b. Canale 68.",null,"c. Canale 16",null,"Selezionare una risposta","",null,0,0,0,0,0,"c"]
["152. Di giorno la presenza di un subacqueo in acque nazionali, va segnalata con………","a. Una boa con bandiera rossa.",null,"b. Una boa con una bandiera gialla.",null,"c. Una boa con una bandiera rossa con striscia diagonale bianca.",null,"Selezionare una risposta","",null,0,0,0,0,0,"c"]
["153. Secondo il codice internazionale dei segnali, la bandiera O (Oscar) significa………","a. \"Uomo in mare\".",null,"b. \"Ho un incendio a bordo\".",null,"c. \"Richiedo assistenza medica\".",null,"Selezionare una risposta","",null,0,0,0,0,0,"a"]
["154. La nave pilota di giorno quale bandiera mostra?","a. La bandiera bianca e rossa (lettera H).",null,"b. La bandiera bianca con il rombo rosso (lettera F).",null,"c. La bandiera rossa (lettera B).",null,"Selezionare una risposta","",null,0,0,0,0,0,"a"]
["155. Secondo il codice internazionale dei segnali, la bandiera W (Whiskey) significa……","a. “Ho bisogno di aiuto\".",null,"b. \"Richiedo assistenza medica\" .",null,"c. \"Le mie macchine vanno indietro\".",null,"Selezionare una risposta","",null,0,0,0,0,0,"b"]
["156. Secondo il codice internazionale dei segnali, la bandiera V (Victor) significa………","a. \"Sto accostando a sinistra\".",null,"b. \"Richiedo assistenza\".",null,"c. \"Sto accostando a dritta\".",null,"Selezionare una risposta","",null,0,0,0,0,0,"b"]
["157. Un'unità che mostra la bandiera in figura…..","a. E' intenta alla pesca a strascico.",null,"b. Ha un palombaro in immersione.",null,"c. Imbarca il pilota del porto.",null,"Selezionare una risposta","",null,0,0,0,0,0,"b"]
["158. Un'unità che mostra la bandiera in figura ……..","a. E' finita su una secca, prestare attenzione.",null,"b. Ha il pilota a bordo.",null,"c. E' una unità che trasporta merci pericolose",null,"Selezionare una risposta","",null,0,0,0,0,0,"b"]
["159. Qual è la definizione di portata geografica?","a. La massima distanza alla quale è visibile la luce.",null,"b. La portata luminosa in un'atmosfera omogenea con \"visibilità meteorologica\" di 10 miglia.",null,"c. La distanza d'avvistamento della sorgente luminosa in funzione della curvatura terrestre.",null,"Selezionare una risposta","",null,0,0,0,0,0,"c"]
["160. Cosa sono i fanali?","a. Impianti di illuminazione fissa dei porti o piattaforme petrolifere.",null,"b. Sorgenti luminose che segnalano entrate dei porti, boe, pericoli, canali navigabili, piattaforme, ecc.",null,"c. Sorgenti luminose capaci di essere rilevate sempre anche dai radar.",null,"Selezionare una risposta","",null,0,0,0,0,0,"b"]
["161. Qual è la definizione di portata luminosa?","a. La massima distanza alla quale è visibile la luce.",null,"b. La portata luminosa in un'atmosfera omogenea con \"visibilità meteorologica\" di 10 miglia.",null,"c. La distanza d'avvistamento della sorgente luminosa in funzione della curvatura terrestre.",null,"Selezionare una risposta","",null,0,0,0,0,0,"a"]
["162. Qual è la definizione di portata nominale?","a. La massima distanza alla quale è visibile la luce.",null,"b. La portata luminosa in un'atmosfera omogenea con \"visibilità meteorologica\" di 10 miglia.",null,"c. La distanza d'avvistamento della sorgente luminosa in funzione della curvatura terrestre.",null,"Selezionare una risposta","",null,0,0,0,0,0,"b"]
["163. Nel Mar Mediterraneo e nei mari adiacenti quale sistema è adottato dei due previsti dalla IALA?","a. Sistema A (rosso a sx).",null,"b. Sistema B (rosso a dx).",null,"c. Sistema C (bianco a dx e a sx)",null,"Selezionare una risposta","",null,0,0,0,0,0,"a"]
["164. Il segnale cardinale in figura indica…….","a. Passare ad Est perché il pericolo è ad Ovest.",null,"b. Passare ad Ovest perché il pericolo è ad Est.",null,"c. Passare a Nord perché il pericolo è a Sud.",null,"Selezionare una risposta","",null,0,0,0,0,0,"c"]
["165. Uscendo da Barcellona di che colore è il fanale che mantengo sulla mia sinistra?","a. Verde.",null,"b. Rosso.",null,"c. Bianco.",null,"Selezionare una risposta","",null,0,0,0,0,0,"a"]
["166. Cosa significa l'abbreviazione in inglese \"Fl (3) W 10s\" che si trova nell'elenco dei Fari e segnali da nebbia edito in Italiano dall'I.I.M.?","a. 3 luci fisse verticali periodo 10 secondi.",null,"b. 3 lampi bianchi periodo 10 secondi.",null,"c. Scintillante gruppi di 3 lampi bianchi periodo 10 secondi.",null,"Selezionare una risposta","",null,0,0,0,0,0,"b"]
["167. Cosa significa l'abbreviazione in inglese \"Oc W 5s\" che si trova nell'elenco dei Fari e segnali da nebbia edito in Italiano dall'I.I.M.?","a. Intermittente bianco periodo 5 secondi.",null,"b. Occultato per 5 secondi (in ogni periodo)",null,"c. 1 lampo bianco periodo 5 secondi.",null,"Selezionare una risposta","",null,0,0,0,0,0,"a"]
["168. In figura è rappresentato un tipo di segnale del sistema AISM - IALA Regione A; cosa indica?","a. Segnale speciale.",null,"b. Segnale di acque sicure.",null,"c. Segnale di pericolo isolato.",null,"Selezionare una risposta","",null,0,0,0,0,0,"c"]
["169. Su una carta nautica italiana in corrispondenza di un faro leggo: \"Lam (2) 8 s 30m 11M\". Qual è il significato?","a. Faro di seconda categoria; 8 lampi nel periodo, portata geografica 30 miglia, portata luminosa 11 miglia.",null,"b. 2 lampi di colore indeterminato; periodo 8 secondi; elevazione luce sul l.m.m.: 30 metri; portata nominale 11 miglia.",null,"c. 2 lampi bianchi periodo 8 secondi; elevazione luce sul l.m.m.: 30 metri; portata nominale: 11 miglia.",null,"Selezionare una risposta","",null,0,0,0,0,0,"c"]
["170. Cosa significa l'abbreviazione in inglese \"Fl G 5s\" che si trova nell'elenco dei Fari e segnali da nebbia edito in Italiano dall'I.I.M.?","a. Lampeggiante giallo periodo 5 secondi.",null,"b. 1 lampo giallo periodo 5 secondi.",null,"c. 1 lampo verde periodo 5 secondi.",null,"Selezionare una risposta","",null,0,0,0,0,0,"c"]
["171. Accanto al simbolo di un faro sulla carta nautica sono riportate le seguenti indicazioni: \"Lam (2) 12s 27m 17M\". Qual è il significato?","a. Luce a lampi, 2 lampi in 12 secondi di periodo, costruzione alta 27 metri, 17 mg di portata geografica.",null,"b. Luce a lampi, periodo 12 secondi di cui 2 secondi di luce, luce alta 17 metri sul l.m., portata luminosa nominale 27 miglia.",null,"c. Luce a lampi, 2 lampi in 12 secondi di periodo, luce alta 27 metri sul l.m., 17 miglia di portata luminosa nominale.",null,"Selezionare una risposta","",null,0,0,0,0,0,"c"]
["172. Di che colore è una meda che indica pericolo isolato?","a. Di colore rosso.",null,"b. Di colore nero con una o più bande orizzontali rosse.",null,"c. Di colore giallo con una banda nera.",null,{"$f":"IF(AND(C68=\"X\",E68=\"X\"),\"Selezionare una sola risposta\",IF(AND(C68=\"X\",G68=\"X\"),\"Selezionare una sola risposta\",IF(AND(E68=\"X\",G68=\"X\"),\"Selezionare una sola risposta\",IF(AND(C68=\"\",E68=\"\",G68=\"\"),\"Selezionare una risposta\",\"\"))))","v":"Selezionare una risposta"},{"$f":"IF(O68=0,\"\",IF((K68+L68+M68)=0,IF(AND(C68=\"\",E68=\"\",G68=\"\"),\"\",\"OK\"),\"Errore. Risposta corretta '\"&P68&\"'\"))","v":""},null,{"$f":"IF(C68=\"X\",IF($P68=\"a\",0,1),0)","v":0},{"$f":"IF(E68=\"X\",IF($P68=\"b\",0,1),0)","v":0},{"$f":"IF(G68=\"X\",IF($P68=\"c\",0,1),0)","v":0},{"$f":"IF(H68=\"\",IF(I68=\"OK\",0,IF(I68=\"\",0,1)),0)","v":0},{"$f":"IF(H68=\"\",1,0)","v":0},"b"]
["173. Il segnale cardinale in figura indica…….","a. Passare ad Est perché il pericolo è ad Ovest.",null,"b. Passare a Nord perché il pericolo è a Sud.",null,"c. Passare ad Ovest perché il pericolo è ad Est.",null,"Selezionare una risposta","",null,0,0,0,0,0,"a"]
["174. Che cos'è la portata geografica di un faro?","a. La distanza alla quale si avvista un faro in caso di nebbia.",null,"b. La distanza alla quale la luce del faro può essere vista da un occhio normale.",null,"c. La distanza alla quale la luce di un faro può essere vista in relazione alla curvatura della Terra e all'altezza dell'osservatore.",null,"Selezionare una risposta","",null,0,0,0,0,0,"c"]
["175. Il segnale cardinale in figura indica….","a. Passare ad Est perché il pericolo è ad Ovest.",null,"b. Passare a Nord perché il pericolo è a Sud.",null,"c. Passare ad Ovest perché il pericolo è ad Est.",null,"Selezionare una risposta","",null,0,0,0,0,0,"c"]
["176. Entrando nel porto di New York, di che colore è il fanale che mantengo sulla mia dritta?","a. Verde.",null,"b. Rosso.",null,"c. Bianco.",null,"Selezionare una risposta","",null,0,0,0,0,0,"b"]
["177. Il segnale cardinale in figura indica….","a. Passare ad Est perché il pericolo è ad Ovest.",null,"b. Passare a Sud perché il pericolo è a Nord.",null,"c. Passare ad Ovest perché il pericolo è ad Est.",null,"Selezionare una risposta","",null,0,0,0,0,0,"b"]
["178. Che cos'è la \"caratteristica\" del faro?","a. L'insieme delle proprietà strutturali che contraddistinguono il faro.",null,"b. Il colore della struttura del faro.",null,"c. La disposizione nel tempo delle luci e delle eclissi.",null,"Selezionare una risposta","",null,0,0,0,0,0,"c"]

{"sheet":"Test Carte Segnali Abbordi","index":2,"n_rows":88,"n_cols":17,"rows_kept":88,"merged":[[0,1,0,5]]}
["                                                      ","Test su Pubblicazioni, Carte, Segnali, Abbordi (86 quesiti)",{"$nulls":5},{"$f":"O1&\" domande completate \"&\"su 86 quesiti\"","v":"0 domande completate su 86 quesiti"},{"$f":"N1&\"   Errori su            \"&O1&\"   Risposte\"","v":"0   Errori su            0   Risposte"},{"$nulls":4},{"$f":"SUM(N3:N88)","v":0},{"$f":"SUM(O3:O88)","v":0}]
["TESTO DELLA DOMANDA","RISPOSTA 1","SelezioneRisposta 1","RISPOSTA 2","Selezione Risposta 2","RISPOSTA 3","Selezione Risposta 3","Domanda completata","Esito di ogni risposta",null,"Esito 1 (1=errore)","Esito 2 (1=errore)","Esito 3 (1=errore)","Domande con rispsoste errate","Domande completate"]
["179. Cosa sono i documenti nautici?","a. Le carte nautiche.",null,"b. L'insieme  delle  carte  e  delle  pubblicazioni  nautiche  necessarie  per  la  condotta  della navigazione.",null,"c. I documenti che lo Skipper deve portare con sé in navigazione",null,{"$f":"IF(AND(C3=\"X\",E3=\"X\"),\"Selezionare una sola risposta\",IF(AND(C3=\"X\",G3=\"X\"),\"Selezionare una sola risposta\",IF(AND(E3=\"X\",G3=\"X\"),\"Selezionare una sola risposta\",IF(AND(C3=\"\",E3=\"\",G3=\"\"),\"Selezionare una risposta\",\"\"))))","v":"Selezionare una risposta"},{"$f":"IF(O3=0,\"\",IF((K3+L3+M3)=0,IF(AND(C3=\"\",E3=\"\",G3=\"\"),\"\",\"OK\"),\"Errore. Risposta corretta '\"&P3&\"'\"))","v":""},null,{"$f":"IF(C3=\"X\",IF($P3=\"a\",0,1),0)","v":0},{"$f":"IF(E3=\"X\",IF($P3=\"b\",0,1),0)","v":0},{"$f":"IF(G3=\"X\",IF($P3=\"c\",0,1),0)","v":0},{"$f":"IF(H3=\"\",IF(I3=\"OK\",0,IF(I3=\"\",0,1)),0)","v":0},{"$f":"IF(H3=\"\",1,0)","v":0},"b"]
["180. A quali scopi servono i \"pianetti\"?","a. Alla condotta della navigazione in una particolare zona ristretta con dettagli della costa.",null,"b. A conoscere l'entrata dei porti.",null,"c. A conoscere le correnti marine e svolgere i relativi problemi.",null,{"$f":"IF(AND(C4=\"X\",E4=\"X\"),\"Selezionare una sola risposta\",IF(AND(C4=\"X\",G4=\"X\"),\"Selezionare una sola risposta\",IF(AND(E4=\"X\",G4=\"X\"),\"Selezionare una sola risposta\",IF(AND(C4=\"\",E4=\"\",G4=\"\"),\"Selezionare una risposta\",\"\"))))","v":"Selezionare una risposta"},{"$f":"IF(O4=0,\"\",IF((K4+L4+M4)=0,IF(AND(C4=\"\",E4=\"\",G4=\"\"),\"\",\"OK\"),\"Errore. Risposta corretta '\"&P4&\"'\"))","v":""},null,{"$f":"IF(C4=\"X\",IF($P4=\"a\",0,1),0)","v":0},{"$f":"IF(E4=\"X\",IF($P4=\"b\",0,1),0)","v":0},{"$f":"IF(G4=\"X\",IF($P4=\"c\",0,1),0)","v":0},{"$f":"IF(H4=\"\",IF(I4=\"OK\",0,IF(I4=\"\",0,1)),0)","v":0},{"$f":"IF(H4=\"\",1,0)","v":0},"b","X"]
["181. Cosa sono i piani?","a. Carte a piccola scala.",null,"b. Carte a grande scala.",null,"c. Carte generali.",null,"Selezionare una risposta","",null,0,0,0,0,0,"b"]
["182. Le linee di base…","a. Segnano il limite da cui va misurata la fascia di mare territoriale.",null,"b. Delimitano aree in cui è vietato l'ancoraggio.",null,"c. Congiungono punti di uguale profondità.",null,"Selezionare una risposta","",null,0,0,0,0,0,"a"]
["183. Cosa sono gli \"Avvisi ai Naviganti\" diffusi dall' I.I.M.M.?","a. Notizie diffuse solo via radio con i bollettini.",null,"b. Periodici di copertura mondiale con frequenza settimanale o di copertura nazionale con frequenza quindicinale.",null,"c. Notizie reperibili esclusivamente presso gli Uffici marittimi.",null,"Selezionare una risposta","",null,0,0,0,0,0,"b"]
["184. Dove sono indicate le basi misurate?","a. Sugli avvisi ai naviganti.",null,"b. Su di un'apposita pubblicazione dell'Istituto Idrografico.",null,"c. Sulla carta 1111 dell'I.I.M.M..",null,"Selezionare una risposta","",null,0,0,0,0,0,"b"]
["185. Cosa sono le carte costiere?","a. Sono carte a scala medio-piccola.",null,"b. Sono carte nautiche impiegate nella navigazione costiera aventi una scala infeiore al 1:300.000.",null,"c. Sono carte nautiche impiegate nella navigazione costiera aventi una scala superiore al 1:300.000.",null,"Selezionare una risposta","",null,0,0,0,0,0,"c"]
["186. Cosa sono le carte generali?","a. Carte a piccola scala.",null,"b. Carte a grande scala.",null,"c. Carte internazionali.",null,"Selezionare una risposta","",null,0,0,0,0,0,"a"]
["187. Quale tra le seguenti carte non è usata per condurre la navigazione costiera?","a. La carta gnomonica.",null,"b. La carta di Mercatore.",null,"c. Il piano nautico.",null,"Selezionare una risposta","",null,0,0,0,0,0,"a"]
["188. L'elenco dei fari e segnali da nebbia….","a. Riporta ubicazione, descrizione e caratteristiche dei segnali luminosi e sonori delle coste del Mediterraneo.",null,"b. E' il fascicolo periodico contenente dati, inserti e pagine sostitutive per l'aggiornamento delle carte e pubblicazioni nautiche.",null,"c. Fornisce ogni notizia necessaria alla navigazione come descrizione della costa, pericoli, aspetto dei fari, fanali, servizi portuali, boe.",null,"Selezionare una risposta","",null,0,0,0,0,0,"a"]
["189. Il piano nautico è una carta ….","a. A grande scala riproducente aree di limitate estensioni come porti, rade, isolotti.",null,"b. A piccola scala riproducente aree di limitate estensioni come porti, rade, isolotti.",null,"c. A piccola scala riproducente aree di elevate estensioni come oceani, mari, continenti.",null,"Selezionare una risposta","",null,0,0,0,0,0,"a"]
["190. Ogni carta nautica dell'I.I.M.M. riporta i seguenti dati….","a. Declinazione, deviazione e nome dei venti.",null,"b. Simboli indicanti la natura del suolo terrestre e caratteristiche dei venti.",null,"c. Simboli indicanti la natura del fondo marino.",null,"Selezionare una risposta","",null,0,0,0,0,0,"c"]
["191. A quali scopi servono le carte generali?","a. Per lo studio delle traversate rispetto a eventi meteorologici.",null,"b. Per la disposizione delle varie carte particolari.",null,"c. Per il tracciamento delle rotte per grandi traversate.",null,"Selezionare una risposta","",null,0,0,0,0,0,"c"]
["192. Cosa s'intende per \"aggiornamento\" delle pubblicazioni nautiche?","a. Esclusivamente la segnalazione di nuove edizioni.",null,"b. Adeguamento delle pubblicazioni alle modifiche che intervengono.",null,"c. Modifica di pagine e cartine nell'elenco dei fari e fanali.",null,"Selezionare una risposta","",null,0,0,0,0,0,"b"]
["193. Quali scale si usano nelle carte generali?","a. Scale comprese tra 1-250.000 e 1-1.000.000.",null,"b. Scale comprese tra 1-60.000 e 1-200.000.",null,"c. Scale comprese tra 1-1.000.000 e 1-7.000.000.",null,"Selezionare una risposta","",null,0,0,0,0,0,"c"]
["194. Tra le seguenti scale, quale sarebbe la più adatta ad una carta costiera?","a. 1:1.200.000",null,"b. 1:150.000",null,"c. 1:10.000",null,"Selezionare una risposta","",null,0,0,0,0,0,"b"]
["195. Tra le seguenti scale quale sarebbe la più adatta ad un piano nautico?","a. 1:1.000.000",null,"b. 1:150.000",null,"c. 1:7.500",null,"Selezionare una risposta","",null,0,0,0,0,0,"c"]
["196. Sulle carte, oltre alla costa, cosa è descritto?","a. Meridiani, paralleli, stazioni radio costiere e R.G.",null,"b. Porti, natura del suolo, notizie oceanografiche.",null,"c. Profondità, elevazioni, segnali convenzionali, ecc.",null,"Selezionare una risposta","",null,0,0,0,0,0,"c"]
["197. Il Portolano….","a. Riporta ubicazione, descrizione e caratteristiche dei segnali luminosi e sonori delle coste del Mediterraneo.",null,"b. E' il fascicolo periodico contenente dati, inserti e pagine sostitutive per l'aggiornamento delle carte e pubblicazioni nautiche.",null,"c. Fornisce ogni notizia necessaria alla navigazione come descrizione della costa, pericoli, aspetto dei fari, fanali, servizi portuali, boe.",null,"Selezionare una risposta","",null,0,0,0,0,0,"c"]
["198. Fanno parte della simbologia internazionale delle carte nautiche…..","a. Le isobate.",null,"b. Le boe dei fondali.",null,"c. Il profilo del porto.",null,"Selezionare una risposta","",null,0,0,0,0,0,"a"]
["199. Gli avvisi ai naviganti….","a. Riportano ubicazione, descrizione e caratteristiche dei segnali luminosi e sonori delle coste del Mediterraneo.",null,"b. Sono il fascicolo periodico contenente dati, inserti e pagine sostitutive per l'aggiornamento delle carte e pubblicazioni nautiche.",null,"c. Forniscono ogni notizia necessaria alla navigazione come descrizione della costa, pericoli, aspetto dei fari, fanali, servizi portuali, boe.",null,"Selezionare una risposta","",null,0,0,0,0,0,"b"]
["200. Tra due scale, qual è la maggiore?","a. Quella col denominatore maggiore.",null,"b. Dipende dalla latitudine.",null,"c. Quella col denominatore minore.",null,"Selezionare una risposta","",null,0,0,0,0,0,"c"]
["201. Le carte nautiche si dividono in…..","a. Carte generali, carte costiere, piani.",null,"b. Carte generiche, carte navali, carte topografiche.",null,"c. Carte topografiche, carte generali, piani.",null,"Selezionare una risposta","",null,0,0,0,0,0,"a"]
["202. Tra le seguenti scale quale sarebbe la più adatta ad una carta generale?","a. 1:1.200.000",null,"b. 1:150.000",null,"c. 1:10.000",null,"Selezionare una risposta","",null,0,0,0,0,0,"a"]
["203. La carta speciale I.I. 1.050 riporta..........","a. L'elenco delle zone di mare pericolose.",null,"b. L'elenco di tutti i simboli presenti sulle carte nautiche.",null,"c. L'elenco di tutte le abbreviazioni presenti sulle carte nautiche.",null,"Selezionare una risposta","",null,0,0,0,0,0,"a"]
["204. Cosa riporta il fascicolo Avvisi ai Naviganti?","a. Tutte le varianti annuali.",null,"b. La situazione dei fari nelle zone vietate alla navigazione.",null,"c. Tutte le varianti alle carte e alle varie pubblicazioni nautiche.",null,"Selezionare una risposta","",null,0,0,0,0,0,"c"]
["205. Come vengono aggiornate le pubblicazioni nautiche?","a. Solo con il cambio dell'intera pubblicazione.",null,"b. Con aggiornamenti provvisori o definitivi.",null,"c. Definitivamente con avvisi ai naviganti via radio.",null,"Selezionare una risposta","",null,0,0,0,0,0,"b"]
["206. Quali tipi di carte vengono usate per la navigazione costiera?","a. Carte batimetriche.",null,"b. Carte generali e carte costiere.",null,"c. Carte sinottiche.",null,"Selezionare una risposta","",null,0,0,0,0,0,"b"]
["207. Dove si trovano tutti i simboli delle carte nautiche?","a. Nel dorso della carta nautica.",null,"b. Nel margine destro delle carte.",null,"c. Nella pubblicazione dell'I.I.M.M. (n.1111).",null,"Selezionare una risposta","",null,0,0,0,0,0,"c"]
["208. Sulla Carta Nautica il simbolo in figura indica……","a. La presenza di un faro.",null,"b. Un campanile.",null,"c. Un punto di ormeggio con porto turistico",null,"Selezionare una risposta","",null,0,0,0,0,0,"b"]
["209. Sulla Carta Nautica il simbolo in figura indica……","a. Dispositivo di separazione del traffico.",null,"b. Zona di divieto di pesca.",null,"c. Presenza di tubazioni sottomarine.",null,"Selezionare una risposta","",null,0,0,0,0,0,"c"]
["210. Sulla Carta Nautica il simbolo in figura indica……..","a. La presenza di un cavo elettrico sottomarino.",null,"b. La presenza di un tunnel sottomarino.",null,"c. Una zona dove è vietato il transito.",null,"Selezionare una risposta","",null,0,0,0,0,0,"a"]
["211. Sulla Carta Nautica il simbolo in figura indica………","a. Un porto turistico non più in uso.",null,"b. Il divieto di pesca a strascico.",null,"c. Un divieto di ancoraggio.",null,"Selezionare una risposta","",null,0,0,0,0,0,"c"]
["212. Il simbolo in figura, su carte nautiche internazionali, indica……..","a. Segnali galleggianti con risponditori radar.",null,"b. Boa con miraglio.",null,"c. Scafo affondato in parte emergente.",null,"Selezionare una risposta","",null,0,0,0,0,0,"c"]
["213. Il simbolo in figura, su carte nautiche internazionali, indica……","a. Fare attenzione all'ancoraggio sul fondale dove si trova il simbolo.",null,"b. Punto di fonda.",null,"c. Passare ad un miglio dalla zona dove si trova il simbolo.",null,"Selezionare una risposta","",null,0,0,0,0,0,"b"]
["214. Sulla Carta Nautica il simbolo in figura indica………","a. Dispositivo di separazione del traffico.",null,"b. Zona di divieto di pesca.",null,"c. Zona di divieto di ancoraggio.",null,"Selezionare una risposta","",null,0,0,0,0,0,"c"]
["215. In figura è rappresentata …….","a. Nave che non governa di prora con abbrivo.",null,"b. Nave che non governa senza abbrivo.",null,"c. Nave intenta alla pesca a strascico.",null,"Selezionare una risposta","",null,0,0,0,0,0,"a"]
["216. Un'unità da diporto a motore, di lunghezza inferiore a 50 metri, in navigazione notturna quali fanali deve mostrare?","a. Testa d'albero Bianco, Rosso a dritta, Verde a sinistra, poppa Bianco.",null,"b. Testa d'albero Bianco, Verde a dritta, Rosso a sinistra, poppa Bianco.",null,"c. Testa d'albero Rosso, Bianco a dritta, Verde a sinistra, poppa Rosso.",null,"Selezionare una risposta","",null,0,0,0,0,0,"b"]
["217. Di notte le navi a cuscino d'aria in navigazione cosa mostrano oltre ai normali fanali?","a. Un fanale giallo lampeggiante.",null,"b. Un fanale giallo a luce fissa.",null,"c. Un fanale rosso lampeggiante.",null,"Selezionare una risposta","",null,0,0,0,0,0,"a"]
["218. Quali navi mostrano un fanale supplementare a luce gialla lampeggiante con un settore di visibilità di 360°?","a. Una nave a cuscino d'aria.",null,"b. Nave intenta a dragare.",null,"c. Un idrovolante.",null,"Selezionare una risposta","",null,0,0,0,0,0,"a"]
["219. In navigazione notturna, l'unità che mostra i fanali in figura è……..","a. Un dragamine visto di poppa.",null,"b. Un dragamine visto di prua.",null,"c. Un dragamine visto sul lato sinistro.",null,"Selezionare una risposta","",null,0,0,0,0,0,"a"]
["220. Quanto è ampio il settore oscurato del fanale di coronamento?","a. 135°.",null,"b. 60°.",null,"c. 225°.",null,"Selezionare una risposta","",null,0,0,0,0,0,"c"]
["221. In figura è rappresentato:","a. Rimorchiatore di prora con unità a rimorchio superiore a 200 metri.",null,"b. Nave > 50 metri in navigazione, vista di prua.",null,"c. Rimorchiatore di prora che non governa.",null,"Selezionare una risposta","",null,0,0,0,0,0,"b"]
["222. Il fanale in testa d'albero di una barca a motore ha un settore di visibilità ……..","a. Di 135° verso poppa.",null,"b. Di 225° verso prua.",null,"c. Di 125° verso prua.",null,"Selezionare una risposta","",null,0,0,0,0,0,"b"]
["223. In figura è rappresentato:","a. Una nave pilota vista di prua.",null,"b. Un peschereccio non a strascico visto di prua.",null,"c. Una nave che non governa.",null,"Selezionare una risposta","",null,0,0,0,0,0,"a"]
["224. Un'unità in navigazione entro 3 miglia dalla costa cosa può utilizzare per segnalare la sua posizione in navigazione diurna, in sostituzione dei fari regolamentari di navigazione?","a. Una torcia a luce bianca.",null,"b. Fuochi a mano a luce rossa, da usare all'occorrenza.",null,"c. Luce in testa d'albero di colore rosso.",null,"Selezionare una risposta","",null,0,0,0,0,0,"a"]
["225. Il fascio luminoso del fanale di poppa in navigazione notturna deve avere un'ampiezza di …….","a. 135.5°",null,"b. 135°",null,"c. 112.5°",null,"Selezionare una risposta","",null,0,0,0,0,0,"b"]
["226. In figura è rappresentata:","a. Nave condizionata dal proprio pescaggio.",null,"b. Nave che non governa con abbrivo vista dal lato di dritta.",null,"c. Nave che non governa con abbrivo vista di prua.",null,"Selezionare una risposta","",null,0,0,0,0,0,"c"]
["227. In figura è rappresentata:","a. Nave condizionata dal proprio pescaggio.",null,"b. Nave a propulsione meccanica con fanali facoltativi.",null,"c. Nave a vela con fanali facoltativi vista di poppa.",null,"Selezionare una risposta","",null,0,0,0,0,0,"c"]
["228. I fanali laterali hanno un settore di visibilità …….","a. Di 125°.",null,"b. Di 112° 30'.",null,"c. Di 135°.",null,"Selezionare una risposta","",null,0,0,0,0,0,"b"]
["229. Che colorazione deve avere un fanale di testa d'albero?","a. Rosso.",null,"b. Verde.",null,"c. Bianco.",null,"Selezionare una risposta","",null,0,0,0,0,0,"c"]
["230. Di notte la presenza di un subacqueo va segnalata con……","a. Un fanale giallo fisso.",null,"b. Un fanale giallo intermittente.",null,"c. Un fanale rosso intermittente.",null,"Selezionare una risposta","",null,0,0,0,0,0,"b"]
["231. In figura è rappresentato……","a. Dragamine alla fonda.",null,"b. Dragamine in operazioni visto dal lato sinistro.",null,"c. Dragamine visto di prua.",null,"Selezionare una risposta","",null,0,0,0,0,0,"c"]
["232. Il secondo fanale in testa d'albero ha un settore di visibilità …….","a. Di 225° verso poppa.",null,"b. Di 225° verso prua.",null,"c. Di 135° verso prua.",null,"Selezionare una risposta","",null,0,0,0,0,0,"b"]
["233. In figura è rappresentata …….","a. Nave che non governa con abbrivo.",null,"b. Nave che non governa senza abbrivo.",null,"c. Nave intenta alla pesca a strascico.",null,"Selezionare una risposta","",null,0,0,0,0,0,"b"]
["234. In figura è rappresentato:","a. Dragamine in operazioni.",null,"b. Draga, con lato ostruito a sinistra, vista di poppa.",null,"c. Draga, con lato sinistro libero, vista di prua.",null,"Selezionare una risposta","",null,0,0,0,0,0,"c"]
["235. Di che colore è la luce del fanale di poppavia di un'unità a rimorchio?","a. Di colore giallo.",null,"b. Di colore bianco.",null,"c. Di colore rosso.",null,"Selezionare una risposta","",null,0,0,0,0,0,"b"]
["236. In figura è rappresentata:","a. Una unità incagliata di lunghezza non superiore ai 30 metri.",null,"b. Una unità alla fonda con abbrivo.",null,"c. Una unità incagliata di lunghezza uguale o superiore ai 50 metri.",null,"Selezionare una risposta","",null,0,0,0,0,0,"c"]
["237. Per quali unità da diporto sono obbligatori i fanali regolamentari di navigazione?","a. Per tutte le unità da diporto indipendentemente dal tipo di navigazione effettuata.",null,"b. Per le unità da diporto in navigazione oltre 1 miglio dalla costa.",null,"c. Per le unità da diporto in navigazione entro 1 miglio dalla costa.",null,"Selezionare una risposta","",null,0,0,0,0,0,"b"]
["238. Quanto è ampio il settore oscurato del fanale di coronamento?","a. 135°.",null,"b. 225°.",null,"c. 90°.",null,"Selezionare una risposta","",null,0,0,0,0,0,"b"]
["239. In caso di nebbia, una nave a motore in navigazione con abbrivo che segnali sonori deve emettere?","a. Due fischi lunghi ogni 2'.",null,"b. Un fischio lungo ogni 2'.",null,"c. Due fischi brevi ogni 2'.",null,"Selezionare una risposta","",null,0,0,0,0,0,"b"]
["240. Una nave a propulsione meccanica in navigazione come segnala un'accostata a dritta?","a. Con un suono breve emesso con un fischio.",null,"b. Con due suoni brevi emessi con il fischio.",null,"c. Con un suono breve ed uno prolungato emessi con un fischio.",null,"Selezionare una risposta","",null,0,0,0,0,0,"a"]
["241. Una nave raggiungente che emette due segnali lunghi e due brevi:","a. Segnala all'unità raggiunta che intende superarla sulla sinistra.",null,"b. Segnala all'unità raggiunta che intende superarla sulla destra.",null,"c. Segnala all'unità raggiunta che non intende superarla.",null,"Selezionare una risposta","",null,0,0,0,0,0,"a"]
["242. Un suono lungo, in caso di nebbia, cosa indica?","a. Un'unità a motore in navigazione con abbrivo.",null,"b. Un'unità che viene rimorchiata.",null,"c. Un'unità intenta nella pesca a strascico.",null,"Selezionare una risposta","",null,0,0,0,0,0,"a"]
["243. Una nave a propulsione meccanica in navigazione come segnala un'accostata a sinistra?","a. Con due suoni brevi emessi con il fischio.",null,"b. Con un suono breve ed uno lungo emessi con il fischio.",null,"c. Con due suoni lunghi emessi con il fischio.",null,"Selezionare una risposta","",null,0,0,0,0,0,"a"]
["244. Una nave che emette un segnale breve......","a. Vuole comunicare che sta accostando dritta.",null,"b. Vuole comunicare che sta accostando sinistra.",null,"c. Vuole comunicare che sta effettuando un sorpasso.",null,{"$f":"IF(AND(C68=\"X\",E68=\"X\"),\"Selezionare una sola risposta\",IF(AND(C68=\"X\",G68=\"X\"),\"Selezionare una sola risposta\",IF(AND(E68=\"X\",G68=\"X\"),\"Selezionare una sola risposta\",IF(AND(C68=\"\",E68=\"\",G68=\"\"),\"Selezionare una risposta\",\"\"))))","v":"Selezionare una risposta"},{"$f":"IF(O68=0,\"\",IF((K68+L68+M68)=0,IF(AND(C68=\"\",E68=\"\",G68=\"\"),\"\",\"OK\"),\"Errore. Risposta corretta '\"&P68&\"'\"))","v":""},null,{"$f":"IF(C68=\"X\",IF($P68=\"a\",0,1),0)","v":0},{"$f":"IF(E68=\"X\",IF($P68=\"b\",0,1),0)","v":0},{"$f":"IF(G68=\"X\",IF($P68=\"c\",0,1),0)","v":0},{"$f":"IF(H68=\"\",IF(I68=\"OK\",0,IF(I68=\"\",0,1)),0)","v":0},{"$f":"IF(H68=\"\",1,0)","v":0},"a"]
["245. Una nave che emette due segnali brevi......","a. Vuole comunicare che sta accostando sinistra.",null,"b. Vuole comunicare che sta accostando destra.",null,"c. Vuole comunicare che sta andando con le macchine indietro.",null,"Selezionare una risposta","",null,0,0,0,0,0,"a"]
["246. Una nave che emette tre segnali brevi......","a. Vuol comunicare che sta accostando sinistra.",null,"b. Vuol comunicare che sta accostando destra.",null,"c. Vuol comunicare che sta andando con le macchine indietro.",null,"Selezionare una risposta","",null,0,0,0,0,0,"c"]
["247. L’espressione \"suono prolungato\" designa un suono della durata.....","a. Di circa un secondo.",null,"b. Da quattro sei secondi.",null,"c. Da sei dieci secondi.",null,"Selezionare una risposta","",null,0,0,0,0,0,"b"]
["248. L’espressione \"suono breve\" designa un suono della durata.....","a. Di circa cinque secondi.",null,"b. Di circa un secondo.",null,"c. Di circa tre secondi.",null,"Selezionare una risposta","",null,0,0,0,0,0,"b"]
["249. Una nave che in navigazione diurna mostra un cilindro verticale è un tipo di unità ………","a. All'ancora.",null,"b. Che ha manovrabilità limitata.",null,"c. Che è condizionata dalla propria immersione.",null,"Selezionare una risposta","",null,0,0,0,0,0,"c"]
["250. Un peschereccio che pratica la pesca a strascico di giorno mostra……..","a. Un cono.",null,"b. Tre palloni.",null,"c. Un bicono con i vertici uniti.",null,"Selezionare una risposta","",null,0,0,0,0,0,"c"]
["251. Un'unità a vela che in navigazione diurna mostra un segnale conico nero con il vertice in basso……","a. E' in manovrabilità limitata.",null,"b. Ha il pilota a bordo.",null,"c. Naviga sia a vela sia a motore.",null,"Selezionare una risposta","",null,0,0,0,0,0,"c"]
["252. In navigazione diurna, un'unità che presenta tre coni disposti come in figura è ……","a. Un peschereccio non a strascico con rete maggiore di 150 mt.",null,"b. Una unità alla fonda con abbrivo.",null,"c. Una unità incagliata di lunghezza superiore a 50 mt.",null,"Selezionare una risposta","",null,0,0,0,0,0,"a"]
["253. Quale segnale visivo mostra una nave all'ancora di giorno?","a. Un pallone nero.",null,"b. Un cono a prua con il vertice in alto.",null,"c. Un cilindro a prua.",null,"Selezionare una risposta","",null,0,0,0,0,0,"a"]
["254. In navigazione diurna, un'unità che mostra tre palloni neri come in figura è……","a. Un'unità condizionata dalla propria immersione.",null,"b. Un dragamine.",null,"c. Un'unità incagliata.",null,"Selezionare una risposta","",null,0,0,0,0,0,"b"]
["255. Di giorno un dragamine in operazione cosa mostra?","a. Tre palloni in verticale.",null,"b. Tre palloni in orizzontale.",null,"c. Tre palloni nella stessa posizione dei fanali.",null,"Selezionare una risposta","",null,0,0,0,0,0,"c"]
["256. In navigazione diurna, l'unità che mostra questo segnale è……","a. Nave incagliata.",null,"b. Nave da pesca a strascico.",null,"c. Nave vincolata dal proprio pescaggio.",null,"Selezionare una risposta","",null,0,0,0,0,0,"c"]
["257. Di giorno una nave che non governa cosa mostra?","a. Un cilindro.",null,"b. Tre palloni neri in verticale.",null,"c. Due palloni neri in verticale.",null,"Selezionare una risposta","",null,0,0,0,0,0,"c"]
["258. La presenza di tre palloni neri posizionati verticalmente sta ad indicare che l'unità……….","a. E' intenta alla pesca a strascico.",null,"b. E' incagliata.",null,"c. E' impossibilitata a governare",null,"Selezionare una risposta","",null,0,0,0,0,0,"b"]
["259. In quali porti bisogna tenere la dritta sia entrando sia uscendo?","a. In tutti, eccetto Brindisi.",null,"b. In nessun porto.",null,"c. In tutti, eccetto Portoferraio.",null,"Selezionare una risposta","",null,0,0,0,0,0,"c"]
["260. In quali porti bisogna dare la precedenza alle unità che escono su quelle che entrano?","a. In tutti, eccetto Brindisi.",null,"b. In nessun porto.",null,"c. In tutti, eccetto Portoferraio.",null,"Selezionare una risposta","",null,0,0,0,0,0,"a"]
["261. In figura sono rappresentate due unità a vela; chi ha la precedenza?","a. L'unità B manovra passando in poppa all'unità A.",null,"b. L'unità A stringe di più la bolina e supera in prua l'unità B.",null,"c. L'unità A manovra passando in poppa all'unità B.",null,"Selezionare una risposta","",null,0,0,0,0,0,"c"]
["262. Un'unità a propulsione meccanica in navigazione deve lasciare libera la rotta ad una unità che non governa?","a. Sì, sempre.",null,"b. No, in nessun caso.",null,"c. Solo se l'unità che non governa si trova a dritta.",null,"Selezionare una risposta","",null,0,0,0,0,0,"a"]
["263. In figura sono rappresentate due unità a motore; chi ha la precedenza?","a. L'unità A accosta a dritta e passa a poppa della B.",null,"b. L'unita B accosta a dritta e passa a poppa della A.",null,"c. Accostano a dritta entrambe.",null,"Selezionare una risposta","",null,0,0,0,0,0,"a"]
["264. In figura sono rappresentate due unità a vela; chi ha la precedenza?","a. L'unità B manovra passando in poppa all'unità A.",null,"b. L'unità A manovra passando in poppa all'unità B.",null,"c. Vanno entrambe alla puggia per evitare l'abbordo .",null,"Selezionare una risposta","",null,0,0,0,0,0,"b"]

{"sheet":"Test Struttura Motore","index":3,"n_rows":111,"n_cols":17,"rows_kept":111,"merged":[[0,1,0,5]]}
["                                                      ","Test su Struttura e Motore (109 quesiti)",{"$nulls":5},{"$f":"O1&\" domande completate \"&\"su 109 quesiti\"","v":"58 domande completate su 109 quesiti"},{"$f":"N1&\"   Errori su            \"&O1&\"   Risposte\"","v":"0   Errori su            58   Risposte"},{"$nulls":4},{"$f":"SUM(N3:N111)","v":0},{"$f":"SUM(O3:O111)","v":58}]
["TESTO DELLA DOMANDA","RISPOSTA 1","Selezione Risposta 1","RISPOSTA 2","Selezione Risposta   2","RISPOSTA 3","Selezione Risposta   3","Domanda completata","Esito di ogni risposta",null,"Esito 1 (1=errore)","Esito 2 (1=errore)","Esito 3 (1=errore)","Domande con rispsoste errate","Domande completate"]
["265. La lunghezza di un rimorchio si misura....","a. Dalla prua del rimorchiatore alla poppa dell'ultima unità rimorchiata.",null,"b. Dalla poppa del rimorchiatore alla poppa dell'ultima unità rimorchiata.","X","c. Dalla prua del rimorchiatore alla prua dell'ultima unità rimorchiata.",null,{"$f":"IF(AND(C3=\"X\",E3=\"X\"),\"Selezionare una sola risposta\",IF(AND(C3=\"X\",G3=\"X\"),\"Selezionare una sola risposta\",IF(AND(E3=\"X\",G3=\"X\"),\"Selezionare una sola risposta\",IF(AND(C3=\"\",E3=\"\",G3=\"\"),\"Selezionare una risposta\",\"\"))))","v":""},{"$f":"IF(O3=0,\"\",IF((K3+L3+M3)=0,IF(AND(C3=\"\",E3=\"\",G3=\"\"),\"\",\"OK\"),\"Errore. Risposta corretta '\"&P3&\"'\"))","v":"OK"},null,{"$f":"IF(C3=\"X\",IF($P3=\"a\",0,1),0)","v":0},{"$f":"IF(E3=\"X\",IF($P3=\"b\",0,1),0)","v":0},{"$f":"IF(G3=\"X\",IF($P3=\"c\",0,1),0)","v":0},{"$f":"IF(H3=\"\",IF(I3=\"OK\",0,IF(I3=\"\",0,1)),0)","v":0},{"$f":"IF(H3=\"\",1,0)","v":1},"b"]
["266. Come si chiama il movimento di oscillazione attorno all'asse trasversale dello scafo?","a. Beccheggio.","X","b. Rollio.",null,"c. Sbandamento",null,{"$f":"IF(AND(C4=\"X\",E4=\"X\"),\"Selezionare una sola risposta\",IF(AND(C4=\"X\",G4=\"X\"),\"Selezionare una sola risposta\",IF(AND(E4=\"X\",G4=\"X\"),\"Selezionare una sola risposta\",IF(AND(C4=\"\",E4=\"\",G4=\"\"),\"Selezionare una risposta\",\"\"))))","v":""},{"$f":"IF(O4=0,\"\",IF((K4+L4+M4)=0,IF(AND(C4=\"\",E4=\"\",G4=\"\"),\"\",\"OK\"),\"Errore. Risposta corretta '\"&P4&\"'\"))","v":"OK"},null,{"$f":"IF(C4=\"X\",IF($P4=\"a\",0,1),0)","v":0},{"$f":"IF(E4=\"X\",IF($P4=\"b\",0,1),0)","v":0},{"$f":"IF(G4=\"X\",IF($P4=\"c\",0,1),0)","v":0},{"$f":"IF(H4=\"\",IF(I4=\"OK\",0,IF(I4=\"\",0,1)),0)","v":0},{"$f":"IF(H4=\"\",1,0)","v":1},"a","X"]
["267. Come si chiama il movimento di oscillazione attorno all'asse longitudinale dello scafo?","a. Rollio.","X","b. Beccheggio.",null,"c. Appoppata.",null,"","OK",null,0,0,0,0,1,"a"]
["268. Qual è il fondamentale elemento di rinforzo longitudinale dello scafo?","a. La chiglia.","X","b. Il paramezzale.",null,"c. Il baglio.",null,"","OK",null,0,0,0,0,1,"a"]
["269. Cos'è il fasciame di un'imbarcazione?","a. Involucro interno dello scafo.",null,"b. Rinforzo delle zone estreme prodiera e poppiera.",null,"c. Involucro esterno impermeabile dello scafo.","X","","OK",null,0,0,0,0,1,"c"]
["270. La lunghezza al galleggiamento è.....","a. L'ingombro longitudinale dello scafo, misurato all'altezza di galleggiamento.","X","b. L'ingombro trasversale dello scafo, misurato in metri all'altezza di galleggiamento.",null,"c. L'ingombro trasversale dello scafo, misurato in piedi all'altezza di galleggiamento.",null,"","OK",null,0,0,0,0,1,"a"]
["271. Quali elementi suddividono lo scafo in senso trasversale?","a. Le paratie.","X","b. I boccaporti.",null,"c. Gli osteriggi.",null,"","OK",null,0,0,0,0,1,"a"]
["272. Come è denominata la controtrave che rafforza sotto la chiglia dell'imbarcazione?","a. Paramezzale.",null,"b. Controchiglia.","X","c. Serrette.",null,"","OK",null,0,0,0,0,1,"b"]
["273. Cos'è lo specchio di poppa?","a. Zona della poppa al di sopra del dritto di poppa.","X","b. Fondo del pozzetto in cui è alloggiata la barra del timone.",null,"c. Apertura della poppa negli scafi autosvuotanti.",null,"","OK",null,0,0,0,0,1,"a"]
["274. Cosa è la portata di una nave?","a. Il peso totale della nave.",null,"b. La misura del volume interno della nave.",null,"c. La capacità di carico della nave.","X","","OK",null,0,0,0,0,1,"c"]
["275. Come è denominata la parte emersa dell'imbarcazione?","a. Opera viva.",null,"b. Opera morta.","X","c. Mascone.",null,"","OK",null,0,0,0,0,1,"b"]
["276. Come si chiama la parte sommersa dello scafo?","a. Opera viva.","X","b. Opera morta.",null,"c. Giardinetto.",null,"","OK",null,0,0,0,0,1,"a"]
["277. In figura è riportata la struttura di una unità. Quale elemento costruttivo è il bracciolo?","a. A.",null,"b. B.",null,"c. C.","X","","OK",null,0,0,0,0,1,"c"]
["278. In figura è riportata la struttura di una imbarcazione. Quale elemento costruttivo è il fasciame di coperta?","a. A.","X","b. B.",null,"c. C.",null,"","OK",null,0,0,0,0,1,"a"]
["279. Come si chiama la superficie emersa in prossimità dell'estrema prua?","a. Giardinetto.",null,"b. Specchio.",null,"c. Mascone.","X","","OK",null,0,0,0,0,1,"c"]
["280. Cos'è il gavone in una imbarcazione?","a. Vano-ripostiglio, sia di prua sia di poppa.","X","b. Parte arrotondata dello scafo prima della poppa.",null,"c. Parte curva dello scafo prossima alla prua.",null,"","OK",null,0,0,0,0,1,"a"]
["281. Cosa indica la freccia nell'unità rappresentata in figura?","a. Il mascone.","X","b. Il dritto di prua.",null,"c. Il giardinetto.",null,"","OK",null,0,0,0,0,1,"a"]
["282. Come sono denominate le strutture trasversali che si incastrano nella chiglia dell'imbarcazione?","a. Torelli.",null,"b. Costole.","X","c. Serrette.",null,"","OK",null,0,0,0,0,1,"b"]
["283. Come si definisce il movimento di oscillazione attorno all'asse longitudinale di un'imbarcazione?","a. Beccheggio.",null,"b. Rollio.","X","c. Insellamento.",null,"","OK",null,0,0,0,0,1,"b"]
["284. In figura è riportata la struttura di un'imbarcazione; quale elemento costruttivo è la falchetta?","a. A.",null,"b. B.","X","c. C.",null,"","OK",null,0,0,0,0,1,"b"]
["285. Cos'è il pescaggio di una nave?","a. La distanza tra la linea di galleggiamento e la chiglia.","X","b. La distanza tra la chiglia e il fondo del mare.",null,"c. Il peso totale della nave.",null,"","OK",null,0,0,0,0,1,"a"]
["286. Cos'è il \"calcagnolo\"?","a. Il prolungamento della chiglia o altro robusto elemento che sostiene inferiormente l'asse del timone.","X","b. il supporto dell'asse dell'elica.",null,"c. Il punto in cui l'asse del timone si innesta sulla barra.",null,"","OK",null,0,0,0,0,1,"a"]
["287. Cos'è l'ordinata maestra?","a. L'ordinata numero 1 della nave.",null,"b. L'ordinata corrispondente alla sezione maestra dello scafo.","X","c. L'ordinata di maggiore spessore.",null,"","OK",null,0,0,0,0,1,"b"]
["288. Cosa indica la freccia nell'unità rappresentata in figura?","a. Il giardinetto.","X","b. Il mascone.",null,"c. La deriva.",null,"","OK",null,0,0,0,0,1,"a"]
["289. Cos'è la chiesuola?","a. Colonna in legno o metallo amagnetico che sostiene il mortaio.","X","b. Riparo della bussola.",null,"c. Armadietto ove sono ordinati i magneti per la compensazione.",null,"","OK",null,0,0,0,0,1,"a"]
["290. A quali elementi è fissato il fasciame esterno dello scafo?","a. Alle costole.","X","b. Ai bagli.",null,"c. Al paramezzale.",null,"","OK",null,0,0,0,0,1,"a"]
["291. In figura è riportata la struttura di una imbarcazione. Quali elementi sono denominati serrette?","a. A.",null,"b. B.",null,"c. C.","X","","OK",null,0,0,0,0,1,"c"]
["292. Quale parte dell'imbarcazione è la sentina?","a. Lo spazio compreso tra la dritta e la sinistra dell'unità.",null,"b. Lo spazio compreso tra la poppa e la prima paratia.",null,"c. Lo spazio compreso tra il fondo dello scafo ed il pagliolo.","X","","OK",null,0,0,0,0,1,"c"]
["293. Com'è chiamata la linea che separa l'opera viva dall'opera morta?","a. Linea di insellatura.",null,"b. Linea di galleggiamento.","X","c. Linea di bordo libero.",null,"","OK",null,0,0,0,0,1,"b"]
["294. In figura è riportata la struttura di una imbarcazione. Quale elemento costruttivo è il baglio?","a. A.","X","b. B.",null,"c. C.",null,"","OK",null,0,0,0,0,1,"a"]
["295. Come è denominata la controtrave che rafforza sopra la chiglia dell'imbarcazione?","a. Controchiglia.",null,"b. Madiere.",null,"c. Paramezzale.","X","","OK",null,0,0,0,0,1,"c"]
["296. Cosa sono gli agugliotti?","a. Elementi del timone.","X","b. Perni sui quali vengono fissati i remi.",null,"c. Appoggi delle tavole costituenti il paiolato.",null,"","OK",null,0,0,0,0,1,"a"]
["297. Come si chiama il pavimento dell'imbarcazione?","a. Serretta.",null,"b. Pagliolato.","X","c. Mura.",null,"","OK",null,0,0,0,0,1,"b"]
["298. Come si chiama quel foro sulla prua attraverso il quale passa la catena dell'ancora?","a. Pozzo.",null,"b. Ombrinale.",null,"c. Occhio di cubia.","X","","OK",null,0,0,0,0,1,"c"]
["299. Da che cosa è ricoperta la sentina?","a. Dal boccaporto.",null,"b. Dalla tuga.",null,"c. Dal pagliolato.","X","","OK",null,0,0,0,0,1,"c"]
["300. In un tradizionale scafo in legno, la chiglia è....","a. La struttura trasversale di una nave.",null,"b. Il ponte principale dell'unità.",null,"c. La struttura longitudinale che va da poppa a prua.","X","","OK",null,0,0,0,0,1,"c"]
["301. Qual è il nome di prolungamento della chiglia fino all'estrema prua?","a. Polena.",null,"b. Ruota di prua e dritto di prua.","X","c. Bompresso.",null,"","OK",null,0,0,0,0,1,"b"]
["302. In uno scafo come è chiamata la struttura più bassa sulla quale si collegano le costole?","a. Chiglia.","X","b. Madiere.",null,"c. Paramezzale.",null,"","OK",null,0,0,0,0,1,"a"]
["303. Qual è il nome di prolungamento della chiglia all'estremità poppiera dello scafo?","a. Specchio di poppa.",null,"b. Dritto di poppa.","X","c. Losca.",null,"","OK",null,0,0,0,0,1,"b"]
["304. Cosa sono le battagliole?","a. Aperture per il passaggio delle catene delle ancore.",null,"b. Aperture praticate in coperta.",null,"c. Ringhiere laterali.","X","","OK",null,0,0,0,0,1,"c"]
["305. Cos'è la stazza di una nave?","a. La misura del volume interno della nave.","X","b. Il peso totale della nave.",null,"c. La capacità di carico della nave.",null,"","OK",null,0,0,0,0,1,"a"]
["306. Come si può definire lo scafo di una unità marittima?","a. La parte principale dell'opera morta.",null,"b. La parte principale dell'opera viva.",null,"c. Tutta la struttura che costituisce il guscio dell'imbarcazione.","X","","OK",null,0,0,0,0,1,"c"]
["307. Cos'è il dritto di poppa?","a. Elemento verticale all'estremità posteriore della chiglia.","X","b. Elemento verticale all'estremità anteriore della chiglia.",null,"c. Trave verticale di sostegno del baglio.",null,"","OK",null,0,0,0,0,1,"a"]
["308. Come si chiama la zona della poppa al di sopra del dritto di poppa?","a. Specchio di poppa.","X","b. Dritto di prua.",null,"c. Scalmo.",null,"","OK",null,0,0,0,0,1,"a"]
["309. Cos'è lo scalmo?","a. Perno fissato sulla parte prodiera del timone.",null,"b. Forcella infissa sulla falchetta dove si appoggia il remo.","X","c. Colonnina usata per dare volta alle cime.",null,"","OK",null,0,0,0,0,1,"b"]
["310. Come si chiama il perno fissato sulla parte prodiera del timone, da infilare nella femminella sul dritto di poppa?","a. Cubia.",null,"b. Agugliotto.","X","c. Femminella.",null,"","OK",null,0,0,0,0,1,"b"]
["311. Come si chiama la piccola apertura nella murata o nella tuga, per dare aria e luce agli interni?","a. Oblò.","X","b. Ombrinale.",null,"c. Cubia.",null,"","OK",null,0,0,0,0,1,"a"]
["312. Cos'è la femminella?","a. Piccola apertura nella murata o nella tuga",null,"b. Sostegno del timone sul dritto di poppa.","X","c. Parte curva tra il dritto di prora e la chiglia.",null,"","OK",null,0,0,0,0,1,"b"]
["313. Come si chiama l'elemento verticale di poppa, dove sono fissate le femminelle che alloggiano gli agugliotti del timone?","a. Paramezzale di poppa.",null,"b. Diritto di poppa.","X","c. Travicella di poppa.",null,"","OK",null,0,0,0,0,1,"b"]
["314. Cos'è la stiva?","a. Spazio interno delle navi destinato al carico.","X","b. Tavolato che forma il pavimento dell'imbarcazione.",null,"c. Sinonimo di gavone.",null,"","OK",null,0,0,0,0,1,"a"]
["315. Come si chiama la colonnina usata per dare volta alle cime?","a. Bitta.","X","b. Ordinata.",null,"c. Puntale.",null,"","OK",null,0,0,0,0,1,"a"]
["316. L’agghiaccio è.....","a. L’insieme degli organi con i quali si trasmette il movimento al timone.","X","b. Altro nome del dritto di prua.",null,"c. Altro nome del dritto di poppa.",null,"","OK",null,0,0,0,0,1,"a"]
["317. Cos'è il pulpito?","a. Parte rigida di sostegno della battagliola, prora e poppa.","X","b. Parte flessibile, sostegno della battagliola.",null,"c. Sostegno del timone sul dritto di poppa.",null,"","OK",null,0,0,0,0,1,"a"]
["318. Che cos'è il grippiale?","a. Una cima che si lega all'anello dell'ancora per evitare che l'ancora ari.",null,"b. Un galleggiante che sostiene la grippia.","X","c. Una cima che si lega al fuso per regolare l'ancoraggio.",null,"","OK",null,0,0,0,0,1,"b"]
["319. Cos'è l'ombrinale?","a. Il foro sulla prua attraverso il quale passa la catena dell'ancora.",null,"b. Il foro sul fondo del pozzetto per lo scolo dell'acqua.","X","c. Piccola apertura nello scalmo.",null,"","OK",null,0,0,0,0,1,"b"]
["320. Il Principio di Archimede enuncia che……….","a. Un corpo immerso in un liquido riceve una spinta dall'alto verso il basso pari al peso del volume del liquido spostato.",null,"b. Un corpo immerso in un liquido riceve una spinta dal basso verso l'alto pari al peso del corpo immerso.",null,"c. Un corpo immerso in un liquido riceve una spinta dal basso verso l'alto pari al peso del volume del liquido spostato.","X","","OK",null,0,0,0,0,1,"c"]
["321. \"Un corpo immerso in un liquido riceve una spinta dal basso verso l'alto pari al peso del volume del liquido spostato\". Questo principio è chiamato.............","a. Principio di Pitagora.",null,"b. Principio di Euclide.",null,"c. Principio di Archimede","X","","OK",null,0,0,0,0,1,"c"]
["322. Come si chiama il peso dell'imbarcazione corrispondente, per il principio di Archimede, al peso del volume del liquido spostato?","a. Pescaggio.",null,"b. Immersione.",null,"c. Dislocamento.","X","","OK",null,0,0,0,0,1,"c"]
["323. Cos'è la ruota di prora?","a. Parte curva tra il dritto di poppa e la chiglia.",null,"b. Elemento trasversale dell'ossatura dello scafo.",null,"c. Parte curva tra il dritto di prora e la chiglia.",null,"Selezionare una risposta","",null,0,0,0,0,0,"c"]
["324. Come viene spento di norma il motore diesel?","a. Mettendo a massa la bobina.",null,"b. Lasciando esaurire la benzina nel serbatoio.",null,"c. Interrompendo l'afflusso del carburante alla pompa di iniezione.",null,"Selezionare una risposta","",null,0,0,0,0,0,"c"]
["325. Quali imbarcazioni sono dotate, normalmente, di fuoribordo con gambo corto?","a. Grossa imbarcazione a vela.",null,"b. Scafi con carena a V.",null,"c. Scafi con carena piatta e gommoni.",null,"Selezionare una risposta","",null,0,0,0,0,0,"c"]
["326. Su un'unità propulsa da un motore entrobordo a benzina, la prima operazione da compiere prima di accendere il motore è……..","a. Verificare che le candele siano ben inserite.",null,"b. Arieggiare il gavone dove è alloggiato il motore.",null,"c. Aprire i rubinetti del circuito di raffreddamento a ciclo chiuso.",null,"Selezionare una risposta","",null,0,0,0,0,0,"b"]
["327. Relativamente alla sicurezza, qual è il principale difetto del motore a benzina?","a. L'accumulo di vapori di benzina nel vano motore.",null,"b. Le esalazioni di vapori di benzina dal tubo di scarico.",null,"c. La minore volatilità della benzina rispetto al gasolio.",null,"Selezionare una risposta","",null,0,0,0,0,0,"a"]
["328. Relativamente al sistema di accensione del carburante, qual è la principale differenza tra un motore a benzina ed un diesel?","a. Il motore diesel necessita di un circuito elettrico per accendere il carburante con una scintilla; nel motore a benzina il carburante si accende per compressione.",null,"b. Il motore a benzina necessita di un circuito elettrico per accendere il carburante con una scintilla; nel motore diesel il carburante si accende per compressione.",null,"c. Entrambi i motori necessitano di un circuito elettrico per accendere il carburante con una scintilla ma nel motore diesel la scintilla deve essere più potente.",null,"Selezionare una risposta","",null,0,0,0,0,0,"b"]
["329. Che cosa aspira il motore diesel?","a. Aria e gasolio.",null,"b. Solo aria.",null,"c. Gasolio.",null,"Selezionare una risposta","",null,0,0,0,0,0,"b"]
["330. Nel motore entrobordo diesel, è obbligatorio realizzare un impianto di aerazione forzata?","a. Sì, è obbligatorio.",null,"b. No ed è sconsigliato.",null,"c. No ma è consigliato.",null,{"$f":"IF(AND(C68=\"X\",E68=\"X\"),\"Selezionare una sola risposta\",IF(AND(C68=\"X\",G68=\"X\"),\"Selezionare una sola risposta\",IF(AND(E68=\"X\",G68=\"X\"),\"Selezionare una sola risposta\",IF(AND(C68=\"\",E68=\"\",G68=\"\"),\"Selezionare una risposta\",\"\"))))","v":"Selezionare una risposta"},{"$f":"IF(O68=0,\"\",IF((K68+L68+M68)=0,IF(AND(C68=\"\",E68=\"\",G68=\"\"),\"\",\"OK\"),\"Errore. Risposta corretta '\"&P68&\"'\"))","v":""},null,{"$f":"IF(C68=\"X\",IF($P68=\"a\",0,1),0)","v":0},{"$f":"IF(E68=\"X\",IF($P68=\"b\",0,1),0)","v":0},{"$f":"IF(G68=\"X\",IF($P68=\"c\",0,1),0)","v":0},{"$f":"IF(H68=\"\",IF(I68=\"OK\",0,IF(I68=\"\",0,1)),0)","v":0},{"$f":"IF(H68=\"\",1,0)","v":0},"c"]
["331. Quali sono le fasi di funzionamento di un motore marino a quattro tempi?","a. Aspirazione - Compressione - Scoppio - Scarico.",null,"b. Scoppio - Compressione - Aspirazione - Scarico.",null,"c. Compressione - Iniezione - Scarico - Scoppio.",null,"Selezionare una risposta","",null,0,0,0,0,0,"a"]
["332. Qual è la causa più comune per cui un motore entrobordo si surriscalda?","a. La presa a mare della pompa dell'acqua si è occlusa.",null,"b. Si è rotta la pompa di iniezione.",null,"c. Il filtro dell'olio si è sporcato.",null,"Selezionare una risposta","",null,0,0,0,0,0,"a"]
["333. Come avviene l'accensione della miscela aria-combustibile nel motore diesel?","a. Il combustibile si autoaccende, essendo iniettato in camera di combustione quando raggiunge temperature elevatissime.",null,"b. Attraverso le candelette.",null,"c. Con lo spinterogeno.",null,"Selezionare una risposta","",null,0,0,0,0,0,"a"]
["334. Quali imbarcazioni non sono dotate, normalmente, di fuoribordo con gambo corto?","a. Gommoni.",null,"b. Scafi con carena a V.",null,"c. Scafi con carena piatta.",null,"Selezionare una risposta","",null,0,0,0,0,0,"b"]
["335. Cos'è un motore \"entrofuoribordo\"?","a. Un motore fuoribordo, che ha un apposito pozzetto interno.",null,"b. Un motore entrobordo con organi di trasmissione riuniti in un piede fuoribordo.",null,"c. Un motore esterno allo scafo con organi di trasmissione interni.",null,"Selezionare una risposta","",null,0,0,0,0,0,"b"]
["336. Cosa si intende quando si \"spurga\" il sistema d'alimentazione di un motore diesel?","a. Si svuota tutto il gasolio presente nel sistema prima di riempire il serbatoio.",null,"b. Si elimina tutta l'aria presente nel sistema prima di riaccendere il motore.",null,"c. Si puliscono i filtri del gasolio del sistema d'alimentazione.",null,"Selezionare una risposta","",null,0,0,0,0,0,"b"]
["337. Come si chiama la struttura portante e di collegamento tra i vari organi di un motore endotermico?","a. Monoblocco.",null,"b. Testata.",null,"c. Basamento.",null,"Selezionare una risposta","",null,0,0,0,0,0,"a"]
["338. Se un motore diesel \"perde colpi e cala di giri\", nel caso in cui il carburante sia sufficiente, cosa si è verificato?","a. Il filtro dell'olio è intasato.",null,"b. Si è intasata la presa a mare.",null,"c. Vi è carburante sporco.",null,"Selezionare una risposta","",null,0,0,0,0,0,"c"]
["339. In un normale motore marino moderno, l'elica gira agli stessi giri del motore?","a. Sì, sempre.",null,"b. Solo al numero di giri corrispondenti ad una preselezionata velocità di crociera.",null,"c. No; l'asse dell'elica viene mosso dal motore attraverso il complesso riduttore/invertitore che ne riduce il numero di giri.",null,"Selezionare una risposta","",null,0,0,0,0,0,"c"]
["340. Da cosa è costituito il sistema propulsivo di una barca a motore?","a. Dalle vele.",null,"b. Dal timone e i suoi accessori.",null,"c. Dal motore e dall'elica.",null,"Selezionare una risposta","",null,0,0,0,0,0,"c"]
["341. In un motore cos'è la \"linea d'asse\"?","a. L'asse che collega l'elica alla scatola dell'invertitore.",null,"b. Il supporto che sostiene l'asse porta-elica sotto lo scafo.",null,"c. Il complesso che trasmette la potenza del motore al propulsore.",null,"Selezionare una risposta","",null,0,0,0,0,0,"c"]
["342. Qual è il maggior difetto di un motore a benzina rispetto ad un motore diesel?","a. Una accelerazione più lenta.",null,"b. Le vibrazioni generate in navigazione.",null,"c. I possibili inconvenienti di ordine elettrico.",null,"Selezionare una risposta","",null,0,0,0,0,0,"c"]
["343. Qual è l'organo del motore marino che permette di alternare le fasi di moto \"marcia avanti - folle - inversione di marcia\"?","a. L'astuccio.",null,"b. Il giunto cardanico.",null,"c. L'invertitore.",null,"Selezionare una risposta","",null,0,0,0,0,0,"c"]
["344. Che tipo di raffreddamento ha un motore fuoribordo?","a. Ad aria.",null,"b. Ad acqua, senza pompa.",null,"c. Ad acqua, con pompa.",null,"Selezionare una risposta","",null,0,0,0,0,0,"c"]
["345. Qual è l'indicazione più evidente che mostra il corretto funzionamento del circuito di raffreddamento ad acqua marina?","a. La fuoriuscita continua di fiotti d'acqua dal condotto di scarico.",null,"b. L'assenza di qualsiasi fuoriuscita di liquido dal condotto di scarico.",null,"c. La fuoriuscita di condensa di acqua dal condotto di scarico.",null,"Selezionare una risposta","",null,0,0,0,0,0,"a"]
["346. Con che cosa si rabbocca il livello nello scambiatore del circuito di raffreddamento indiretto in un motore entrobordo?","a. Con acqua di mare.",null,"b. Con olio.",null,"c. Con acqua dolce.",null,"Selezionare una risposta","",null,0,0,0,0,0,"c"]
["347. Quale tra i seguenti motori, ai fini della sicurezza da esplosioni o da incendi, è il meno pericoloso?","a. Il motore diesel.",null,"b. Il motore a benzina.",null,"c. Il motore a miscela olio - benzina.",null,"Selezionare una risposta","",null,0,0,0,0,0,"a"]
["348. Quando un timone si definisce \"compensato\"?","a. Quando la pala è è costruita in legno compensato marino.",null,"b. Quando il movimento della pala viene demoltiplicato per ridurre lo sforzo sulla ruota.",null,"c. Quando parte della superficie della pala si estende anche a pruavia dell'asse del timone per tutta l'altezza della pala.",null,"Selezionare una risposta","",null,0,0,0,0,0,"c"]
["349. Quando un timone si definisce \"semicompensato\"?","a. Quando parte della superficie della pala si estende anche a pruavia dell'asse del timone per un'altezza inferiore a quella della pala.",null,"b. Quando la pala è costruita in legno compensato marino e in fibra di vetro.",null,"c. Quando la superficie della pala si estende tutta a poppavia dell'asse del timone",null,"Selezionare una risposta","",null,0,0,0,0,0,"a"]
["350. Quando un timone si definisce \"ordinario\"?","a. Quando tutta la superficie della pala si trova a poppavia dell'asse del timone.",null,"b. Quando la superficie della pala non ha un profilo idrodinamico.",null,"c. Quando la pala viene azionata con una barra invece che con una ruota.",null,"Selezionare una risposta","",null,0,0,0,0,0,"a"]
["351. A che serve il timone compensato?","a. Ad allontanare dall'asse di rotazione il punto di applicazione della risultante della pressione esercitata dall'acqua sulle pale.",null,"b. Ad avere un timone più robusto.",null,"c. A ridurre la resistenza della pala alla rotazione.",null,"Selezionare una risposta","",null,0,0,0,0,0,"c"]
["352. La superficie del timone pressoché rettangolare, su cui agisce la pressione dell'acqua quando il timone viene messo alla banda e la nave naviga si chiama......","a. Spalla.",null,"b. Pala.",null,"c. Asse.",null,"Selezionare una risposta","",null,0,0,0,0,0,"b"]
["353. Cos'è la \"losca\"?","a. Il foro attraverso cui passa la catena dell'ancora.",null,"b. La parte più bassa dello scafo.",null,"c. Il foro attraverso cui passa l'asse del timone.",null,"Selezionare una risposta","",null,0,0,0,0,0,"c"]
["354. Che cos'è un timone compensato?","a. Un timone i cui effetti evolutivi sono compensati da quelli dell'elica.",null,"b. Un timone di rispetto.",null,"c. Un timone che presenta una parte della pala a pruavia dell'asse.",null,"Selezionare una risposta","",null,0,0,0,0,0,"c"]
["355. Per quale angolo si può girare il timone (intorno al suo asse) per ottenere il massimo effetto evolutivo?","a. Da 50° a 90°.",null,"b. Da 90° a 115°.",null,"c. Da 30° a 40°.",null,"Selezionare una risposta","",null,0,0,0,0,0,"c"]
["356. La parte posteriore della pala, ossia il dorso del timone, si chiama...........","a. Spalla.",null,"b. Anima",null,"c. Asse.",null,"Selezionare una risposta","",null,0,0,0,0,0,"a"]
["357. In marcia avanti, portando la ruota del timone a sinistra, la poppa dell'imbarcazione….","a. Accosta a dritta.",null,"b. Orza.",null,"c. Accosta a sinistra.",null,"Selezionare una risposta","",null,0,0,0,0,0,"a"]
["358. Com'è chiamato l'insieme degli organi con i quali si trasmette il movimento al timone?","a. Dorso.",null,"b. Agghiaccio.",null,"c. Arridatoio.",null,"Selezionare una risposta","",null,0,0,0,0,0,"b"]
["359. Come si regola il premistoppa sulla tenuta dell'asse dell'elica?","a. Va stretto in modo da non perdere nemmeno una goccia.",null,"b. Va leggermente stretto in modo che vi sia un flusso costante.",null,"c. Va stretto in modo che perda poche gocce al minuto.",null,"Selezionare una risposta","",null,0,0,0,0,0,"c"]
["360. Tra un'elica a passo fisso, una a pale abbatibili ed una a pale orientabili, quale ha il minor rendimento a marcia indietro?","a. L'elica a pale fisse.",null,"b. L'elica a pale orientabili.",null,"c. L'elica a pale abbatibili.",null,"Selezionare una risposta","",null,0,0,0,0,0,"c"]
["361. Generalmente, in un'unità bielica, che senso di rotazione ha l'elica di sinistra?","a. Destrorso.",null,"b. Sinistrorso.",null,"c. Indifferente.",null,"Selezionare una risposta","",null,0,0,0,0,0,"b"]
["362. Qual è il maggior difetto di un'elica a passo variabile?","a. Basso rendimento a marcia avanti.",null,"b. Forte resistenza in una navigazione unicamente a vela.",null,"c. Estrema delicatezza del sistema di regolazione del passo.",null,"Selezionare una risposta","",null,0,0,0,0,0,"c"]
["363. Per invertire la rotazione dell'elica occorre invertire la rotazione del motore?","a. No; l'inversione della rotazione dell'elica avviene attraverso il complesso riduttore/invertitore azionando l'apposita leva.",null,"b. Solo nei motori non dotati di complesso riduttore/invertitore occorre invertire il senso di rotazione del motore.",null,"c. Sì; l'inversione del senso di rotazione del motore avviene automaticamente azionando l'apposita leva.",null,"Selezionare una risposta","",null,0,0,0,0,0,"a"]
["364. Quali sono gli effetti evolutivi di un'elica destrorsa rispetto a quelli di un'elica sinistrorsa?","a. Stessi effetti ma con tendenze opposte.",null,"b. Effetti completamente diversi.",null,"c. Stessi effetti, più marcati nell'elica destrorsa.",null,"Selezionare una risposta","",null,0,0,0,0,0,"a"]
["365. Quando un'elica si definisce destrorsa?","a. Quando le pale girano in senso antiorario in marcia avanti.",null,"b. Quando le pale girano in senso orario in marcia avanti.",null,"c. Quando le pale girano in senso orario in marcia indietro.",null,"Selezionare una risposta","",null,0,0,0,0,0,"b"]
["366. Qual è l'elemento che, oltre la spinta esercitata dalle singole pale, influisce sull'effetto evolutivo dell'elica?","a. Il diametro dell'elica.",null,"b. La velocità di rotazione dell'elica.",null,"c. Il flusso d'acqua spinto contro la pala del timone o la carena.",null,"Selezionare una risposta","",null,0,0,0,0,0,"c"]
["367. Come è definita la differenza tra la distanza teorica e quella effettiva percorsa da un'elica in un giro completo?","a. Diametro.",null,"b. Passo.",null,"c. Regresso.",null,"Selezionare una risposta","",null,0,0,0,0,0,"c"]
["368. Qual è l'effetto evolutivo di un'elica destrorsa in rotazione all'indietro?","a. Fa ruotare la poppa verso dritta, quindi la prora verso sinistra.",null,"b. Fa ruotare sia la poppa sia la prora verso dritta.",null,"c. Fa ruotare la poppa verso sinistra, quindi la prora verso dritta.",null,"Selezionare una risposta","",null,0,0,0,0,0,"c"]
["369. Quando un'elica si definisce sinistrorsa?","a. Quando le pale girano in senso antiorario nella marcia avanti.",null,"b. Quando le pale girano in senso orario nella marcia avanti.",null,"c. Quando le pale girano in senso antiorario nella marcia indietro.",null,"Selezionare una risposta","",null,0,0,0,0,0,"a"]
["370. Cos'è il passo teorico di una elica?","a. La distanza tra le pale dell' elica.",null,"b. Il numero di giri che l'elica fa in una unità di tempo.",null,"c. La distanza che l'elica percorrerebbe in un giro completo se l'acqua fosse solida.",null,"Selezionare una risposta","",null,0,0,0,0,0,"c"]
["371. Come si chiama la distanza teorica che un'elica percorrerebbe in un giro completo?","a. Passo.",null,"b. Regresso.",null,"c. Diametro.",null,"Selezionare una risposta","",null,0,0,0,0,0,"a"]
["372. In quali condizioni l'effetto evolutivo si manifesta in modo più evidente?","a. A bassa velocità dello scafo, basso numero di giri dell'elica durante la rotazione indietro.",null,"b. Ad alta velocità dello scafo, normale numero di giri dell'elica durante la rotazione in avanti.",null,"c. A bassa velocità dello scafo, alto numero di giri dell'elica durante la rotazione in avanti.",null,"Selezionare una risposta","",null,0,0,0,0,0,"a"]
["373. In quali condizioni il regresso di un'elica sarà maggiore?","a. A bassa velocità dello scafo e ad alto numero di giri dell'elica.",null,"b. Alla velocità e al numero di giri dell'elica corrispondenti alla crociera veloce.",null,"c. In navigazione in mare aperto mentre l'elica ruota al minimo.",null,"Selezionare una risposta","",null,0,0,0,0,0,"a"]

{"sheet":"Test Ancoraggi e Ormeggi","index":4,"n_rows":24,"n_cols":17,"rows_kept":24,"merged":[[0,1,0,5]]}
["                                                      ","Test su Ancoraggi e Ormeggi (22 quesiti)",{"$nulls":5},{"$f":"O1&\" domande completate \"&\"su 22 quesiti\"","v":"22 domande completate su 22 quesiti"},{"$f":"N1&\"   Errori su            \"&O1&\"   Risposte\"","v":"0   Errori su            22   Risposte"},{"$nulls":4},{"$f":"SUM(N3:N24)","v":0},{"$f":"SUM(O3:O24)","v":22}]
["TESTO DELLA DOMANDA","RISPOSTA 1","Selezione Risposta    1","RISPOSTA 2","Selezione Risposta   2","RISPOSTA 3","Selezione Risposta   3","Domanda completata","Esito di ogni risposta",null,"Esito 1 (1=errore)","Esito 2 (1=errore)","Esito 3 (1=errore)","Domande con rispsoste errate","Domande completate"]
["374. Quali sono le ancore a marre articolate?","a. L'ancora Bruce.",null,"b. Le ancore Danforth e la Hall.","X","c. L'ancora Grappino.",null,{"$f":"IF(AND(C3=\"X\",E3=\"X\"),\"Selezionare una sola risposta\",IF(AND(C3=\"X\",G3=\"X\"),\"Selezionare una sola risposta\",IF(AND(E3=\"X\",G3=\"X\"),\"Selezionare una sola risposta\",IF(AND(C3=\"\",E3=\"\",G3=\"\"),\"Selezionare una risposta\",\"\"))))","v":""},{"$f":"IF(O3=0,\"\",IF((K3+L3+M3)=0,IF(AND(C3=\"\",E3=\"\",G3=\"\"),\"\",\"OK\"),\"Errore. Risposta corretta '\"&P3&\"'\"))","v":"OK"},null,{"$f":"IF(C3=\"X\",IF($P3=\"a\",0,1),0)","v":0},{"$f":"IF(E3=\"X\",IF($P3=\"b\",0,1),0)","v":0},{"$f":"IF(G3=\"X\",IF($P3=\"c\",0,1),0)","v":0},{"$f":"IF(H3=\"\",IF(I3=\"OK\",0,IF(I3=\"\",0,1)),0)","v":0},{"$f":"IF(H3=\"\",1,0)","v":1},"b"]
["375. Come si chiama la lunghezza di catena o cavo dell'ancora filata nell'ancoraggio?","a. Lunghezza.",null,"b. Marra.",null,"c. Calumo","X",{"$f":"IF(AND(C4=\"X\",E4=\"X\"),\"Selezionare una sola risposta\",IF(AND(C4=\"X\",G4=\"X\"),\"Selezionare una sola risposta\",IF(AND(E4=\"X\",G4=\"X\"),\"Selezionare una sola risposta\",IF(AND(C4=\"\",E4=\"\",G4=\"\"),\"Selezionare una risposta\",\"\"))))","v":""},{"$f":"IF(O4=0,\"\",IF((K4+L4+M4)=0,IF(AND(C4=\"\",E4=\"\",G4=\"\"),\"\",\"OK\"),\"Errore. Risposta corretta '\"&P4&\"'\"))","v":"OK"},null,{"$f":"IF(C4=\"X\",IF($P4=\"a\",0,1),0)","v":0},{"$f":"IF(E4=\"X\",IF($P4=\"b\",0,1),0)","v":0},{"$f":"IF(G4=\"X\",IF($P4=\"c\",0,1),0)","v":0},{"$f":"IF(H4=\"\",IF(I4=\"OK\",0,IF(I4=\"\",0,1)),0)","v":0},{"$f":"IF(H4=\"\",1,0)","v":1},"c","X"]
["376. Qual è il nome dell'ancora che ha 4 o 6 marre ad uncino?","a. Bruce.",null,"b. Hall.",null,"c. Grappino.","X","","OK",null,0,0,0,0,1,"c"]
["377. In figura è indicata un'unità all'ormeggio; le frecce indicano quali cime d'ormeggio?","a. Alla ruota.",null,"b. Spring.",null,"c. Alla lunga.","X","","OK",null,0,0,0,0,1,"c"]
["378. Quanto deve essere la lunghezza di catena filata nell'ancoraggio?","a. Non meno di 3-5 volte il fondale.","X","b. Due volte il fondale.",null,"c. Quanto il fondale, più 10 metri.",null,"","OK",null,0,0,0,0,1,"a"]
["379. Per avere un ancoraggio effettuato correttamente, in normali condizioni meteo-marine ci si deve accertare che………","a. Il rapporto tra la lunghezza del cavo-catena e la profondità del mare è superiore a 5.",null,"b. Il rapporto tra la lunghezza del cavo-catena e la profondità del mare è superiore a 3.","X","c. Il rapporto tra la lunghezza del cavo-catena e la profondità del mare è inferiore a 3.",null,"","OK",null,0,0,0,0,1,"b"]
["380. Com'è denominata la parte dell'ancora che fa presa sul fondo?","a. Marra.","X","b. Fuso.",null,"c. Diamante.",null,"","OK",null,0,0,0,0,1,"a"]
["381. Che cosa è la \"grippia\"?","a. Una cima che si lega all'anello dell'ancora per evitare che l'ancora ari.",null,"b. Una cima che si lega al diamante dell'ancora per facilitarne il recupero.","X","c. Una cima che si lega al fuso per regolare l'ancoraggio.",null,"","OK",null,0,0,0,0,1,"b"]
["382. Quando si è in presenza di rotta di collisione?","a. Quando, in caso di rotte convergenti, il rilevamento diminuisce.",null,"b. Quando, in caso di rotte convergenti, il rilevamento aumenta.",null,"c. Quando, in caso di rotte convergenti, il rilevamento rimane costante e la distanza diminuisce.","X","","OK",null,0,0,0,0,1,"c"]
["383. Come deve comportarsi una nave che ne raggiunge un'altra?","a. Deve lasciare libera la rotta alla nave raggiunta.","X","b. Deve emettere quattro suoni brevi.",null,"c. Deve segnalare l'intenzione di sorpasso e la nave raggiunta deve cederle la rotta.",null,"","OK",null,0,0,0,0,1,"a"]
["384. Se siamo in rotta di collisione e i rilevamenti polari aumentano (si vede la nave scadere verso poppa)….","a. Bisogna manovrare per evitare la certa collisione.",null,"b. Non vi sarà collisione: noi passeremo per primi e l'altra nave ci passerà di poppa.","X","c. Non vi sarà collisione: l'altra nave passerà per prima e ci passerà di prora.",null,"","OK",null,0,0,0,0,1,"b"]
["385. Esiste il pericolo di collisione quando…….","a. Le due rotte sono convergenti.","X","b. Le due rotte sono divergenti.",null,"c. Le due rotte sono parallele ma costanti.",null,"","OK",null,0,0,0,0,1,"a"]
["386. In caso di navigazione con mare di prua ……..","a. E’ obbligatorio lanciare il PAN PAN PAN.",null,"b. In caso estremo possiamo metterci alla cappa.","X","c. Aumentiamo la velocità.",null,"","OK",null,0,0,0,0,1,"b"]
["387. In caso di incaglio su fondo sabbioso o fangoso, si può tentare il disincaglio….","a. Tonneggiandosi in modo da distendere l'ancora e virare sul cavo col verricello.","X","b. Accelerando al massimo.",null,"c. Attendendo il rimorchiatore.",null,"","OK",null,0,0,0,0,1,"a"]
["388. Qual è la prima cosa da fare in caso di incaglio?","a. Ammainare le vele o spegnere il motore.","X","b. Accelerare per disincagliare.",null,"c. Attendere il disincaglio ad opera della marea.",null,"","OK",null,0,0,0,0,1,"a"]
["389. Se siamo in rotta di collisione e i rilevamenti polari diminuiscono (si vede la nave scadere verso prora)…..","a. Bisogna manovrare per evitare la certa collisione.",null,"b. Le due rotte sono parallele ma costanti.",null,"c. Non vi sarà collisione: l'altra nave passerà per prima e ci passerà di prora.","X","","OK",null,0,0,0,0,1,"c"]
["390. In caso di falla………","a. Si può tentare di farla venire allo scoperto per poi tamponarla dall'esterno.","X","b. E’ sempre obbligatorio attendere soccorsi.",null,"c. Ci si tonneggia in modo da distendere l'ancora e virare sul cavo col verricello.",null,"","OK",null,0,0,0,0,1,"a"]
["391. In caso di uomo mare (visto cadere in acqua), è necessario……..","a. Chiamare la Guardia Costiera.",null,"b. Dare l'allarme con il grido \"uomo mare!\" e poi lanciare il salvagente.","X","c. Lanciare il Securité-Securité.",null,"","OK",null,0,0,0,0,1,"b"]
["392. Se siamo in rotta di collisione e i rilevamenti polari rimangono costanti e la distanza diminuisce……","a. Bisogna manovrare per evitare la certa collisione.","X","b. Non vi sarà collisione: noi passeremo per primi e l'altra nave ci passerà di poppa.",null,"c. Non vi sarà collisione: l'altra nave passerà per prima e ci passerà di prora.",null,"","OK",null,0,0,0,0,1,"a"]
["393. In caso di uomo mare (visto cadere in acqua), la prima cosa da fare è……..","a. Lanciare il PAN PAN PAN.",null,"b. Accostare dallo stesso lato da cui è caduto il naufrago.","X","c. Compiere un'evoluzione completa, fino tornare sul naufrago.",null,"","OK",null,0,0,0,0,1,"b"]
["394. La falla si verifica quando…..","a. S'incastra l'elica che ha la funzione di sensore.",null,"b. Si apre una via d'acqua sullo scafo dell'imbarcazione.","X","c. S'incastra l'elica del motore.",null,"","OK",null,0,0,0,0,1,"b"]
["395. In caso di falla irreparabile…………. …","a. Si deve rimanere bordo fino all'arrivo dei rimorchiatori.",null,"b. Si libera l'elica del motore incastrata.",null,"c. E’ necessario abbandonare la nave.","X","","OK",null,0,0,0,0,1,"c"]

{"sheet":"Test Meteo e Geografia","index":5,"n_rows":64,"n_cols":17,"rows_kept":64,"merged":[[0,1,0,5]]}
["                                                      ","Test su Meteorolgia e Geografia (62 quesiti)",{"$nulls":5},{"$f":"O1&\" domande completate \"&\"su 62 quesiti\"","v":"62 domande completate su 62 quesiti"},{"$f":"N1&\"   Errori su            \"&O1&\"   Risposte\"","v":"1   Errori su            62   Risposte"},{"$nulls":4},{"$f":"SUM(N3:N64)","v":1},{"$f":"SUM(O3:O64)","v":62}]
["TESTO DELLA DOMANDA","RISPOSTA 1","Selezione Risposta    1","RISPOSTA 2","Selezione Risposta   2","RISPOSTA 3","Selezione Risposta   3","Domanda completata","Esito di ogni risposta",null,"Esito 1 (1=errore)","Esito 2 (1=errore)","Esito 3 (1=errore)","Domande con rispsoste errate","Domande completate"]
["396. Cosa rappresenta la rosa dei venti?","a. L'elenco nominativo dei venti principali.",null,"b. L'orizzonte visibile, con il nome e la direzione di alcuni venti tipici del Mediterraneo.","X","c. Nome, forza e direzione dei venti.",null,{"$f":"IF(AND(C3=\"X\",E3=\"X\"),\"Selezionare una sola risposta\",IF(AND(C3=\"X\",G3=\"X\"),\"Selezionare una sola risposta\",IF(AND(E3=\"X\",G3=\"X\"),\"Selezionare una sola risposta\",IF(AND(C3=\"\",E3=\"\",G3=\"\"),\"Selezionare una risposta\",\"\"))))","v":""},{"$f":"IF(O3=0,\"\",IF((K3+L3+M3)=0,IF(AND(C3=\"\",E3=\"\",G3=\"\"),\"\",\"OK\"),\"Errore. Risposta corretta '\"&P3&\"'\"))","v":"OK"},null,{"$f":"IF(C3=\"X\",IF($P3=\"a\",0,1),0)","v":0},{"$f":"IF(E3=\"X\",IF($P3=\"b\",0,1),0)","v":0},{"$f":"IF(G3=\"X\",IF($P3=\"c\",0,1),0)","v":0},{"$f":"IF(H3=\"\",IF(I3=\"OK\",0,IF(I3=\"\",0,1)),0)","v":0},{"$f":"IF(H3=\"\",1,0)","v":1},"b"]
["397. Da cosa è costituita l'Atmosfera?","a. Da ossigeno.",null,"b. Da un miscuglio di gas.","X","c. Da vapore acqueo.",null,{"$f":"IF(AND(C4=\"X\",E4=\"X\"),\"Selezionare una sola risposta\",IF(AND(C4=\"X\",G4=\"X\"),\"Selezionare una sola risposta\",IF(AND(E4=\"X\",G4=\"X\"),\"Selezionare una sola risposta\",IF(AND(C4=\"\",E4=\"\",G4=\"\"),\"Selezionare una risposta\",\"\"))))","v":""},{"$f":"IF(O4=0,\"\",IF((K4+L4+M4)=0,IF(AND(C4=\"\",E4=\"\",G4=\"\"),\"\",\"OK\"),\"Errore. Risposta corretta '\"&P4&\"'\"))","v":"OK"},null,{"$f":"IF(C4=\"X\",IF($P4=\"a\",0,1),0)","v":0},{"$f":"IF(E4=\"X\",IF($P4=\"b\",0,1),0)","v":0},{"$f":"IF(G4=\"X\",IF($P4=\"c\",0,1),0)","v":0},{"$f":"IF(H4=\"\",IF(I4=\"OK\",0,IF(I4=\"\",0,1)),0)","v":0},{"$f":"IF(H4=\"\",1,0)","v":1},"b","X"]
["398. Come si chiamano i movimenti orizzontali di masse d'acqua in mare?","a. Correnti.","X","b. Moto ondoso.",null,"c. Maree.",null,"","OK",null,0,0,0,0,1,"a"]
["399. La scala Celsius è.....","a. Una scala per misurare la temperatura.","X","b. Una scala per misurare la copertura del cielo.",null,"c. Una scala per misurare la velocità del vento tra due isobare.",null,"","OK",null,0,0,0,0,1,"a"]
["400. Quali sono gli elementi identificativi di una corrente marina?","a. Direzione di spostamento e velocità.","X","b. Temperatura e velocità.",null,"c. Direzione di spostamento e temperatura.",null,"","OK",null,0,0,0,0,1,"a"]
["401. Al termine \"Fortunale\", nella scala Beaufort, quale cifra è attribuita?","a. 11.","X","b. 10.",null,"c. 9",null,"","OK",null,0,0,0,0,1,"a"]
["402. Nella scala Douglas dello stato del mare la cifra 5 corrisponde a............","a. Molto mosso.",null,"b. Molto agitato.",null,"c. Agitato.","X","","OK",null,0,0,0,0,1,"c"]
["403. Da quale direzione cardinale spira il Ponente?","a. Nord.",null,"b. Est.",null,"c. Ovest.","X","","OK",null,0,0,0,0,1,"c"]
["404. Gli Alisei nell'emisfero nord soffiano........","a. Da Sud-Ovest.",null,"b. Da Nord-Est.","X","c. Da Sud-Est.",null,"","OK",null,0,0,0,0,1,"b"]
["405. Da quale direzione spira lo Scirocco?","a. Da Ovest.",null,"b. Da Sud - Est.","X","c. Da Nord - Ovest.",null,"","OK",null,0,0,0,0,1,"b"]
["406. Chi fa le previsioni meteorologiche per l'assistenza alla navigazione?","a. Le Capitanerie di Porto.",null,"b. L'Istituto Idrografico della Marina.",null,"c. L'Aeronautica Militare.","X","","OK",null,0,0,0,0,1,"c"]
["407. Cosa sono le nubi?","a. Il prodotto della condensazione del vapore acqueo presente nell'aria.","X","b. Il prodotto dello smog sollevato da correnti ascensionali.",null,"c. Il prodotto del mescolamento di due masse d'aria.",null,"","OK",null,0,0,0,0,1,"a"]
["408. Al termine \"Mosso\", nella scala Douglas, quale cifra è attribuita?","a. 6.",null,"b. 3.","X","c. 4.",null,"","OK",null,0,0,0,0,1,"b"]
["409. Il vento di Libeccio spira……..","a. Verso Sud-Est.",null,"b. Verso Sud-Ovest.",null,"c. Da Sud-Ovest.","X","","OK",null,0,0,0,0,1,"c"]
["410. A che cosa serve la scala Beaufort?","a. Ad indicare l'intensità del vento.","X","b. Ad indicare lo stato del mare.",null,"c. Ad indicare la visibilità.",null,"","OK",null,0,0,0,0,1,"a"]
["411. A che serve la scala Fahrenheit?","a. A misurare l'umidità relativa.",null,"b. A misurare la temperatura.","X","c. A misurare l'umidità assoluta",null,"","OK",null,0,0,0,0,1,"b"]
["412. Un barometro a mercurio è costituito da............","a. Una canna, un termometro, un nonio e una vaschetta di mercurio.","X","b. Due tubicini di mercurio, uno con termometro l'altro con nonio.",null,"c. Una vaschetta con mercurio e tubo di vetro graduato.",null,"","OK",null,0,0,0,0,1,"a"]
["413. Il bollettino Meteomar contiene.............","a. Avvisi ai naviganti, situazione e previsione.",null,"b. Situazione, previsione e osservazione stellare.",null,"c. Avvisi, situazione, previsioni e tendenze, osservazioni.","X","","OK",null,0,0,0,0,1,"c"]
["414. Da quale direzione proviene il Grecale?","a. Da Nord-Ovest.",null,"b. Da Nord-Est.","X","c. Da Sud-Est.",null,"","OK",null,0,0,0,0,1,"b"]
["415. Qual è il vento proveniente da 135°?","a. Ponente.",null,"b. Grecale.",null,"c. Scirocco.","X","","OK",null,0,0,0,0,1,"c"]
["416. Quale vento spira da nord-est?","a. Maestrale.",null,"b. Levante",null,"c. Grecale.","X","","OK",null,0,0,0,0,1,"c"]
["417. Quali intervalli di tempo riguardano la previsione e la tendenza nel bollettino Meteomar?","a. Previsione 12 o 18 ore, tendenza per le 24 ore successive all'ultima ora di validità della previsione.",null,"b. Previsione 12 o 18 ore, tendenza per le 12 ore successive all'ultima ora di validità della previsione.","X","c. Previsione e tendenza per le 18 ore successive all'ultima ora di validità della previsione.",null,"","OK",null,0,0,0,0,1,"b"]
["418. Su quale canale viene diffuso di continuo il bollettino Meteomar?","a. Canale VHF 78.",null,"b. Canale VHF 16 o 68.",null,"c. Canale 68.","X","","OK",null,0,0,0,0,1,"c"]
["419. La velocità del vento si misura con....","a. Il grafometro.",null,"b. Il termometro.",null,"c. L'anemometro.","X","","OK",null,0,0,0,0,1,"c"]
["420. Esiste il \"mare forza 6\"?","a. Sì, è attribuito al mare \"molto agitato\".",null,"b. Sì, è attribuito al mare causato dal \"vento fresco\".",null,"c. No, il termine forza non si utilizza per indicare lo stato del mare.","X","","OK",null,0,0,0,0,1,"c"]
["421. Quali sono i valori della Fahrenheit corrispondenti a 0° e 100° della scala Celsius?","a. 32-212°.","X","b. 12-170°.",null,"c. 18-132°.",null,"","OK",null,0,0,0,0,1,"a"]
["422. Cos'è l'atmosfera?","a. Una massa gassosa che avvolge la superficie terrestre.","X","b. La zona di separazione tra Troposfera e Stratosfera.",null,"c. La zona a contatto con la Mesosfera.",null,"","OK",null,0,0,0,0,1,"a"]
["423. Al termine \"Brezza tesa\", nella scala Beaufort, quale cifra è attribuita?","a. 1.",null,"b. 2.","X","c. 3.",null,"","Errore. Risposta corretta 'c'",null,0,1,0,1,1,"c"]
["424. Ogni quanto tempo viene trasmesso il bollettino Meteomar?","a. Ogni 18 ore.",null,"b. Ogni 12 ore.",null,"c. Ogni 6 ore.","X","","OK",null,0,0,0,0,1,"c"]
["425. Chi trasmette i bollettini Meteomar?","a. Le Capitanerie di Porto.",null,"b. Le stazioni Radiotelefoniche Costiere.","X","c. Il Ministero Poste e Telecomunicazioni.",null,"","OK",null,0,0,0,0,1,"b"]
["426. La scala Beaufort della forza del vento si estende...............","a. Da 0 a 12.","X","b. Da 1 a 10.",null,"c. Da 0 a 10.",null,"","OK",null,0,0,0,0,1,"a"]
["427. Qual è il nome del vento che spira da Est?","a. Levante.","X","b. Ponente.",null,"c. Ostro.",null,"","OK",null,0,0,0,0,1,"a"]
["428. Nel bollettino Meteomar è contenuta la tendenza generale del tempo?","a. Sì.","X","b. No.",null,"c. Sì, ogni 15 giorni.",null,"","OK",null,0,0,0,0,1,"a"]
["429. Come si chiama il vento che viene da Nord Ovest (315°)?","a. Grecale.",null,"b. Ponente.",null,"c. Maestrale.","X","","OK",null,0,0,0,0,1,"c"]
["430. Come si chiama il vento che viene da Sud Ovest (225°)?","a. Grecale.",null,"b. Ostro.",null,"c. Libeccio.","X","","OK",null,0,0,0,0,1,"c"]
["431. Come si chiama il vento che viene da Ovest (270°)?","a. Ponente.","X","b. Grecale.",null,"c. Levante.",null,"","OK",null,0,0,0,0,1,"a"]
["432. L’Ostro è il vento che viene da……….","a. 090°.",null,"b. 180°.","X","c. 000°.",null,"","OK",null,0,0,0,0,1,"b"]
["433. Come si chiama il vento che soffia verso 180°?","a. Tramontana.","X","b. Ostro.",null,"c. Libeccio.",null,"","OK",null,0,0,0,0,1,"a"]
["434. Il Maestrale è il vento che viene da……….","a. 135°.",null,"b. 315°.","X","c. 180°.",null,"","OK",null,0,0,0,0,1,"b"]
["435. Il Levante è il vento che viene da……….","a. 090°.","X","b. 180°.",null,"c. 270°.",null,"","OK",null,0,0,0,0,1,"a"]
["436. Come si chiama il vento che soffia verso Nord (000°)?","a. Tramontana.",null,"b. Ostro.","X","c. Libeccio.",null,"","OK",null,0,0,0,0,1,"b"]
["437. La Tramontana è il vento che viene da……….","a. 000°.","X","b. 180°.",null,"c. 090°.",null,"","OK",null,0,0,0,0,1,"a"]
["438. Cos'è il grado di longitudine?","a. La misura della distanza equivalente ad un miglio marino.",null,"b. La distanza angolare dall'uno all'altro dei 360 meridiani considerati.","X","c. La distanza angolare dall'uno all'altro dei 90 paralleli considerati.",null,"","OK",null,0,0,0,0,1,"b"]
["439. Cos'è il grado di latitudine?","a. La misura della distanza equivalente ad un miglio marino.",null,"b. La distanza angolare dall'uno all'altro dei 360 meridiani considerati.",null,"c. La distanza angolare dall'uno all'altro dei 180 paralleli considerati.","X","","OK",null,0,0,0,0,1,"c"]
["440. Come si conta la latitudine?","a. Si conta da 0° a +180° verso E e da 0° a -180° verso W.",null,"b. Si conta da 0° a +90° verso N e da 0 a -90° verso S.","X","c. Si conta da 0 a 360° verso S o N.",null,"","OK",null,0,0,0,0,1,"b"]
["441. Quali sono le coordinate geografiche?","a. Nord, Sud, Est, Ovest.",null,"b. Latitudine e longitudine.","X","c. Equatore e meridiano di Greenwich.",null,"","OK",null,0,0,0,0,1,"b"]
["442. Tra quali angoli è compresa la latitudine?","a. Tra 0° e 180° verso N o S.",null,"b. Tra 0° e 90° verso N o S.","X","c. Tra 0° e 90° verso E o W.",null,"","OK",null,0,0,0,0,1,"b"]
["443. Cos'è il meridiano di Greenwich?","a. Il semicircolo massimo fondamentale al quale si rapportano le longitudini dei luoghi; divide la terra in due emisferi: Est ed Ovest.","X","b. Il circolo massimo fondamentale, al quale si rapportano le latitudini dei luoghi; divide la terra nei due emisferi Nord e Sud.",null,"c. Il semicircolo massimo fondamentale al quale si rapportano le latitudini dei luoghi; divide la terra in due emisferi: Nord e Sud.",null,"","OK",null,0,0,0,0,1,"a"]
["444. Il grado…..","a. E' l'unità di misura angolare, pari alla 360^ parte di un angolo giro; si divide in 60' ed ogni primo in 60''.","X","b. E' l'unità di misura angolare, pari alla 360^ parte di un angolo giro; si divide in 60' ed ogni primo in 100''.",null,"c. E' l'unità di misura angolare, pari alla 60^ parte di un angolo giro; si divide in 60' ed ogni primo in 100''.",null,"","OK",null,0,0,0,0,1,"a"]
["445. Cos'è un miglio marino?","a. E' l'unità di misura delle distanze in mare.","X","b. E' l'unità di misura degli angoli in mare.",null,"c. E' l'unità di misura dell'angolo che si forma tra le rotte di due imbarcazioni.",null,"","OK",null,0,0,0,0,1,"a"]
["446. Cosa sono i paralleli?","a. Gli infiniti circoli minori che si dipartono parallelamente dall'equatore ai poli.","X","b. Gli infiniti semicircoli che uniscono i poli.",null,"c. Gli infiniti circoli minori che uniscono i poli.",null,"","OK",null,0,0,0,0,1,"a"]
["447. Come si conta la longitudine?","a. Si conta da 0° a +180° verso E e da 0° a -180° verso W.","X","b. Si conta da 0° a +90° verso N e da 0 a -90° verso S.",null,"c. Si conta da 0 a 360° verso S o N.",null,"","OK",null,0,0,0,0,1,"a"]
["448. Tra quali angoli è compresa la longitudine?","a. Tra 0° e 90° verso E o W.",null,"b. Da 0 a 360° in senso orario.",null,"c. Tra 0° e 180° verso E o W.","X","","OK",null,0,0,0,0,1,"c"]
["449. Cos'è l'equatore?","a. Il semicircolo massimo fondamentale, al quale si rapportano le longitudini dei luoghi. Divide la terra in due emisferi Est ed Ovest.",null,"b. Il circolo massimo fondamentale, al quale si rapportano le latitudini dei luoghi. Divide la terra nei due emisferi Nord e Sud.","X","c. Il circolo massimo fondamentale, al quale si rapportano le longitudini dei luoghi. Divide la terra nei due emisferi Nord e Sud.",null,"","OK",null,0,0,0,0,1,"b"]
["450. Le coordinate geografiche si esprimono in...............","a. Latitudine e Longitudine.","X","b. Rilevamento bussola e rilevamento magnetico.",null,"c. Cerchio capace e rilevamento bussola.",null,"","OK",null,0,0,0,0,1,"a"]
["451. Cos'è la longitudine di un punto x?","a. L'arco di meridiano compreso tra l'equatore ed il punto x.",null,"b. L'arco di equatore o parallelo compreso tra il meridiano di Greenwich e il meridiano passante per il punto x.","X","c. La distanza angolare tra il punto x e il punto y.",null,"","OK",null,0,0,0,0,1,"b"]
["452. A quanto equivale un miglio marino?","a. Equivale a 1.850 metri, pari alla lunghezza di 1° di Longitudine alla lat. di 44°27' N.",null,"b. Equivale a 1.852 metri, pari alla lunghezza di 1' di Latitudine alla lat. di 44°27' N.","X","c. Equivale a 1.850 metri, pari alla lunghezza di 1' di Latitudine alla lat. di 44°27' N.",null,"","OK",null,0,0,0,0,1,"b"]
["453. La definizione di miglio nautico ....","a. La lunghezza dell'arco di meridiano ampio un sessantesimo di grado.","X","b. La lunghezza del'arco di cerchio massimo ampio un grado.",null,"c. La lunghezza dell'arco di equatore ampio un grado.",null,"","OK",null,0,0,0,0,1,"a"]
["454. Quali, tra i seguenti, sono elementi del sistema di riferimento sulla sfera terrestre?","a. Poli geografici, equatore e Meridiano di Greenwich.","X","b. Rosa dei venti, latitudine e longitudine.",null,"c. Miglio nautico, lossodromia ed ortodromia.",null,"","OK",null,0,0,0,0,1,"a"]
["455. Cos'è la latitudine di un punto x?","a. L'arco di meridiano compreso tra l'equatore ed il punto x.","X","b. L'arco di equatore compreso tra il meridiano di Greenwich e il meridiano del punto x.",null,"c. La distanza angolare tra il punto x e il punto y.",null,"","OK",null,0,0,0,0,1,"a"]
["456. Cosa sono i meridiani?","a. Gli infiniti circoli minori che si dipartono parallelamente dall'equatore ai poli.",null,"b. Gli infiniti semicircoli che uniscono i poli.","X","c. Gli infiniti semicircoli che si dipartono parallelamente dall'equatore ai poli.",null,"","OK",null,0,0,0,0,1,"b"]
["457. Che cosa sono i punti cardinali?","a. Quattro punti dell'orizzonte visibile.",null,"b. Rappresentazioni delle quattro direzioni principali sul piano orizzontale: quelle N e S del meridiano e quelle E e W ad esso perpendicolari.","X","c. Sono i punti N, S, E, W della rosa graduata della bussola magnetica.",null,"","OK",null,0,0,0,0,1,"b"]

{"sheet":"Test Cartografia e Navigazione","index":6,"n_rows":77,"n_cols":17,"rows_kept":77,"merged":[[0,1,0,6]]}
["                                                      ","Test su Cartografia e Navigazione (75 quesiti)",{"$nulls":5},{"$f":"O1&\" domande completate \"&\"su 62 quesiti\"","v":"0 domande completate su 62 quesiti"},{"$f":"N1&\"   Errori su            \"&O1&\"   Risposte\"","v":"0   Errori su            0   Risposte"},{"$nulls":4},{"$f":"SUM(N3:N77)","v":0},{"$f":"SUM(O3:O77)","v":0}]
["TESTO DELLA DOMANDA","RISPOSTA 1","Selezione Risposta    1","RISPOSTA 2","Selezione Risposta   2","RISPOSTA 3","Selezione Risposta   3","Domanda completata","Esito di ogni risposta",null,"Esito 1 (1=errore)","Esito 2 (1=errore)","Esito 3 (1=errore)","Domande con rispsoste errate","Domande completate"]
["458. Cos'è l'angolo di rotta?","a. L'angolo compreso tra la direzione del nord e la direzione del moto della nave.",null,"b. L'angolo uguale a 180°.",null,"c. La rotta definita dall'angolo compreso tra la direzione del sud e la direzione del moto della nave",null,{"$f":"IF(AND(C3=\"X\",E3=\"X\"),\"Selezionare una sola risposta\",IF(AND(C3=\"X\",G3=\"X\"),\"Selezionare una sola risposta\",IF(AND(E3=\"X\",G3=\"X\"),\"Selezionare una sola risposta\",IF(AND(C3=\"\",E3=\"\",G3=\"\"),\"Selezionare una risposta\",\"\"))))","v":"Selezionare una risposta"},{"$f":"IF(O3=0,\"\",IF((K3+L3+M3)=0,IF(AND(C3=\"\",E3=\"\",G3=\"\"),\"\",\"OK\"),\"Errore. Risposta corretta '\"&P3&\"'\"))","v":""},null,{"$f":"IF(C3=\"X\",IF($P3=\"a\",0,1),0)","v":0},{"$f":"IF(E3=\"X\",IF($P3=\"b\",0,1),0)","v":0},{"$f":"IF(G3=\"X\",IF($P3=\"c\",0,1),0)","v":0},{"$f":"IF(H3=\"\",IF(I3=\"OK\",0,IF(I3=\"\",0,1)),0)","v":0},{"$f":"IF(H3=\"\",1,0)","v":0},"a"]
["459. Quali sono le proprietà di una carta che hanno utilità ai fini del carteggio nella condotta della navigazione?","a. Isogonia, equivalenza, isometria.",null,"b. Isogonia, isometria, rettificazione delle lossodromie.",null,"c. Isometria, rettificazione delle ortodromie, isogonia.",null,{"$f":"IF(AND(C4=\"X\",E4=\"X\"),\"Selezionare una sola risposta\",IF(AND(C4=\"X\",G4=\"X\"),\"Selezionare una sola risposta\",IF(AND(E4=\"X\",G4=\"X\"),\"Selezionare una sola risposta\",IF(AND(C4=\"\",E4=\"\",G4=\"\"),\"Selezionare una risposta\",\"\"))))","v":"Selezionare una risposta"},{"$f":"IF(O4=0,\"\",IF((K4+L4+M4)=0,IF(AND(C4=\"\",E4=\"\",G4=\"\"),\"\",\"OK\"),\"Errore. Risposta corretta '\"&P4&\"'\"))","v":""},null,{"$f":"IF(C4=\"X\",IF($P4=\"a\",0,1),0)","v":0},{"$f":"IF(E4=\"X\",IF($P4=\"b\",0,1),0)","v":0},{"$f":"IF(G4=\"X\",IF($P4=\"c\",0,1),0)","v":0},{"$f":"IF(H4=\"\",IF(I4=\"OK\",0,IF(I4=\"\",0,1)),0)","v":0},{"$f":"IF(H4=\"\",1,0)","v":0},"b","X"]
["460. La scala di una carta di Mercatore è la stessa per tutta la carta?","a. Sì.",null,"b. No, è variabile e diminuisce con la latitudine.",null,"c. No, è variabile ed aumenta con la latitudine.",null,"Selezionare una risposta","",null,0,0,0,0,0,"c"]
["461. La carta di Mercatore…….","a. Serve per rappresentare le calotte polari.",null,"b. E' una carta nautica dove i paralleli sono distanziati secondo la funzione delle latitudini crescenti.",null,"c. E' una modifica della carta gnomonica operata dallo spagnolo Mercatore.",null,"Selezionare una risposta","",null,0,0,0,0,0,"b"]
["462. Come si definisce la scala delle carte?","a. Rapporto tra un primo di longitudine della carta e quello della terra.",null,"b. Rapporto tra segmento unitario \"l\" della carta e quello \"L\" sulla terra espresso nella stessa unità di misura.",null,"c. Rapporto tra un primo di latitudine della carta e quello della terra.",null,"Selezionare una risposta","",null,0,0,0,0,0,"b"]
["463. Le linee batimetriche…..","a. Indicano la presenza di bassifondi e secche.",null,"b. Delimitano aree in cui è vietato l'ancoraggio.",null,"c. Congiungono punti di uguale profondità.",null,"Selezionare una risposta","",null,0,0,0,0,0,"c"]
["464. Cos'è la rotta?","a. E' l'arco di cerchio massimo congiungente il punto di partenza con quello d'arrivo.",null,"b. E' il percorso che la nave ha effettuato o dovrà effettuare.",null,"c. E' il percorso che la nave esegue mantenendo inalterato il suo angolo di rotta RV.",null,"Selezionare una risposta","",null,0,0,0,0,0,"b"]
["465. La proprietà dell'isogonia è una caratteristica della carta …….","a. Di Mercatore.",null,"b. Gnomonica.",null,"c. Lossodromica.",null,"Selezionare una risposta","",null,0,0,0,0,0,"a"]
["466. Qual è la caratteristica della rotta lossodromica?","a. E' il percorso che mantiene costante l'angolo di rotta (Rv).",null,"b. Consente di governare continuamente con un angolo alla bussola costante sotto i 180°.",null,"c. Consente di governare continuamente con un angolo di rotta costante sotto i 180°.",null,"Selezionare una risposta","",null,0,0,0,0,0,"a"]
["467. Sulla carta di Mercatore i paralleli…..","a. Sono rappresentati da linee rette, parallele tra loro ed equidistanti.",null,"b. Sono rappresentati da linee rette, parallele tra loro ma non equidistanti a causa della latitudine crescente.",null,"c. Sono rappresentati da linee rette, non parallele tra loro ma equidistanti.",null,"Selezionare una risposta","",null,0,0,0,0,0,"b"]
["468. In cosa consiste la proprietà di alcune carte nautiche della \"rettificazione delle lossodromie\"?","a. Le lossodromie tagliano con lo stesso angolo i meridiani (Rv), ma non i paralleli.",null,"b. Le lossodromie sulla carta tagliano i meridiani, che sono delle rette parallele tra loro, secondo lo stesso angolo (Rv).",null,"c. Due o più lossodromie parallele hanno la stessa Rv.",null,"Selezionare una risposta","",null,0,0,0,0,0,"b"]
["469. In una carta nautica ogni primo di arco in quante parti può essere suddiviso?","a. Ogni primo è suddiviso in 90 secondi d'arco.",null,"b. Ogni primo è suddiviso in 10 decimi.",null,"c. Ogni primo è suddiviso in 100 parti.",null,"Selezionare una risposta","",null,0,0,0,0,0,"b"]
["470. Cos'è l'angolo di rotta Rv?","a. L'angolo che il percorso della nave in ciascun punto forma con la direzione Nord del meridiano geografico; si misura da 0° a 360° in senso orario a partire da Nord.",null,"b. L'angolo che la chiglia della nave forma con la direzione Nord del meridiano geografico, si misura da 0° a 360° in senso orario a partire da Nord.",null,"c. L'angolo che il percorso della nave in ciascun punto forma con la direzione Sud del meridiano geografico; si misura da 0° a 360° in senso orario a partire da Sud.",null,"Selezionare una risposta","",null,0,0,0,0,0,"a"]
["471. Tra quali valori può variare l'angolo di rotta?","a. Tra 0° e 180° verso Est o verso Ovest a partire da Nord.",null,"b. Tra 0° e 360° in senso anti-orario a partire da Nord.",null,"c. Tra 0° e 360° in senso orario a partire da Nord.",null,"Selezionare una risposta","",null,0,0,0,0,0,"c"]
["472. La carta di Mercatore…..","a. Rettifica le lossodromie.",null,"b. Rettifica solo le ortodromie.",null,"c. Rettifica la rotta ortodromica.",null,"Selezionare una risposta","",null,0,0,0,0,0,"a"]
["473. Cosa s'intende per prora della nave?","a. La rotta che la nave segue.",null,"b. L'angolo che il piano longitudinale della nave forma con il Nord.",null,"c. La parte posteriore della nave.",null,"Selezionare una risposta","",null,0,0,0,0,0,"b"]
["474. Se navighiamo con Rv = 180°, quale delle due coordinate rimarrà invariata?","a. La Latitudine.",null,"b. La Longitudine.",null,"c. Nessuna delle due.",null,"Selezionare una risposta","",null,0,0,0,0,0,"b"]
["475. Come sono suddivisi i primi di latitudine e longitudine sulle carte nautiche italiane?","a. In secondi.",null,"b. In decimi di primo.",null,"c. In otto parti uguali.",null,"Selezionare una risposta","",null,0,0,0,0,0,"b"]
["476. Sulla carta di Mercatore i meridiani…..","a. Sono rappresentati da linee rette, parallele tra loro ed equidistanti.",null,"b. Sono rappresentati da linee rette, parallele tra loro ma non equidistanti.",null,"c. Sono rappresentati da linee rette, non parallele tra loro ma equidistanti.",null,"Selezionare una risposta","",null,0,0,0,0,0,"a"]
["477. Sulla carta di Mercatore le distanze vengono prese…..","a. Sulla scala di longitudine, che è anche scala delle distanze.",null,"b. Sulla scala di latitudine, che è anche scala delle distanze.",null,"c. Sulla scala dell'angolo di rotta.",null,"Selezionare una risposta","",null,0,0,0,0,0,"b"]
["478. In una rappresentazione di Mercatore i primi di longitudine...","a. Sono eguali tra loro.",null,"b. Aumentano la loro lunghezza con il crescere della latitudine.",null,"c. Diminuiscono la loro lunghezza con il crescere della latitudine.",null,"Selezionare una risposta","",null,0,0,0,0,0,"a"]
["479. Su una carta di Mercatore come sono rappresentati i meridiani?","a. Rette convergenti verso il polo.",null,"b. Rette parallele tra loro ed equidistanti parità di differenza di longitudine.",null,"c. Rette parallele tra loro ma non equidistanti parità di differenza di longitudine causa della funzione delle latitudini crescenti che le distanzia sempre di più con l'aumentare della latitudine.",null,"Selezionare una risposta","",null,0,0,0,0,0,"b"]
["480. In una rappresentazione di Mercatore i primi di latitudine sono....","a. Eguali tra loro.",null,"b. Aumentano la loro lunghezza con il crescere della latitudine.",null,"c. Diminuiscono la loro lunghezza con il crescere della latitudine.",null,"Selezionare una risposta","",null,0,0,0,0,0,"b"]
["481. La declinazione magnetica varia in funzione di………….","a. Tempo e materiali ferrosi presenti a bordo.",null,"b. Prua dell'imbarcazione e velocità.",null,"c. Tempo e luogo in cui si trova la nave.",null,"Selezionare una risposta","",null,0,0,0,0,0,"c"]
["482. Come si chiama l'involucro che contiene l'elemento sensibile ed il liquido di una bussola?","a. Fede.",null,"b. Mortaio.",null,"c. Scatola Cardanica.",null,"Selezionare una risposta","",null,0,0,0,0,0,"b"]
["483. Come si determina la declinazione magnetica?","a. Da Tabelle in dotazione alle unità da diporto.",null,"b. Dal portolano e dall'elenco fari e fanali.",null,"c. Dalle carte nautiche.",null,"Selezionare una risposta","",null,0,0,0,0,0,"c"]
["484. La deviazione magnetica dipende da ………..","a. La posizione della nave sul globo terrestre.",null,"b. La velocità effettiva dell'imbarcazione.",null,"c. I ferri duri e i ferri dolci che si trovano a bordo.",null,"Selezionare una risposta","",null,0,0,0,0,0,"c"]
["485. Dove si trovano i valori della deviazione magnetica?","a. Su Tabelle in dotazione alle imbarcazioni.",null,"b. Sul portolano e sull'elenco fari e fanali.",null,"c. Sulle carte nautiche.",null,"Selezionare una risposta","",null,0,0,0,0,0,"a"]
["486. A che serve il liquido che si trova all'interno del mortaio di una bussola magnetica?","a. A mantenere la rosa graduata sempre in orizzontale.",null,"b. A diminuire gli effetti della deviazione magnetica.",null,"c. Ad assorbire colpi di mare e vibrazioni ed a conferire massima stabilità all'equipaggio magnetico.",null,"Selezionare una risposta","",null,0,0,0,0,0,"c"]
["487. L'elemento sensibile della bussola è………","a. La rosa graduata.",null,"b. La sospensione cardanica.",null,"c. L'equipaggio magnetico.",null,"Selezionare una risposta","",null,0,0,0,0,0,"c"]
["488. La declinazione magnetica è…………..","a. L'angolo compreso tra la direzione del Nord Vero e quella del Nord Magnetico.",null,"b. L'angolo compreso tra la direzione del Nord Bussola e quella del Nord Magnetico.",null,"c. L'angolo compreso tra la direzione del Polo Nord e quella del Nord Bussola.",null,"Selezionare una risposta","",null,0,0,0,0,0,"a"]
["489. Che orientamento ha la linea di fede di una bussola?","a. E' parallela all'asse trasversale dello scafo.",null,"b. E' parallela all'asse longitudinale dello scafo",null,"c. E' orientata secondo la direzione del nord magnetico.",null,"Selezionare una risposta","",null,0,0,0,0,0,"b"]
["490. Come si chiama l'insieme degli aghi magnetici di una bussola?","a. Mortaio.",null,"b. Elemento sensibile.",null,"c. Sospensione cardanica.",null,"Selezionare una risposta","",null,0,0,0,0,0,"b"]
["491. Con quale strumento si misura un angolo verticale?","a. Con lo staziografo.",null,"b. Con il sestante.",null,"c. Con il telemetro.",null,"Selezionare una risposta","",null,0,0,0,0,0,"b"]
["492. Con quale strumento si misura la profondità del mare?","a. Solcometro.",null,"b. Scandaglio.",null,"c. Nautofono.",null,"Selezionare una risposta","",null,0,0,0,0,0,"b"]
["493. Lo strumento che misura la profondità del mare è……….","a. Lo scandaglio.",null,"b. Il solcometro.",null,"c. Il giroscopio.",null,"Selezionare una risposta","",null,0,0,0,0,0,"a"]
["494. La profondità del mare si misura con......","a. Il termostato.",null,"b. Il solcometro.",null,"c. Lo scandaglio.",null,"Selezionare una risposta","",null,0,0,0,0,0,"c"]
["495. L’anemometro misura......","a. La velocità del vento.",null,"b. La velocità dell'imbarcazione.",null,"c. La pressione atmosferica.",null,"Selezionare una risposta","",null,0,0,0,0,0,"a"]
["496. Il solcometro misura……","a. Il cammino percorso dalla nave rispetto alla superficie dell'acqua.",null,"b. La sola velocità dell'imbarcazione.",null,"c. La corrente che insiste nella zona.",null,"Selezionare una risposta","",null,0,0,0,0,0,"a"]
["497. Il tachimetro misura………","a. Il cammino percorso dalla nave rispetto alla superficie dell'acqua.",null,"b. La velocità dell'imbarcazione.",null,"c. La corrente che insiste nella zona.",null,"Selezionare una risposta","",null,0,0,0,0,0,"b"]
["498. Il solcometro a pressione è costituito da ……..","a. Un tubo che ha la funzione di sensore.",null,"b. Un tubo cui è attaccato un cavo che ha la funzione di sensore.",null,"c. Un'elica cui è attaccato un tubo che ha la funzione di sensore.",null,"Selezionare una risposta","",null,0,0,0,0,0,"a"]
["499. Lo scandaglio a mano è costituito da………","a. Un peso ed una sagola marcata.",null,"b. Un'elica.",null,"c. Una sagola con ricetrasmettitori ad ultrasuoni.",null,"Selezionare una risposta","",null,0,0,0,0,0,"a"]
["500. Quale tra i seguenti solcometri non esiste?","a. A elica.",null,"b. A pressione.",null,"c. A mercurio.",null,"Selezionare una risposta","",null,0,0,0,0,0,"c"]
["501. L’ecoscandaglio ………","a. E’ costituito da un peso ed una sagola marcata.",null,"b. E’ costituito da un'elica.",null,"c. E’ un ricetrasmettitore ad ultrasuoni.",null,"Selezionare una risposta","",null,0,0,0,0,0,"c"]
["502. Cosa misura lo scandaglio?","a. La profondità del mare.",null,"b. La velocità dell'imbarcazione.",null,"c. La velocità del vento.",null,"Selezionare una risposta","",null,0,0,0,0,0,"a"]
["503. Il solcometro a elica è costituito da ….","a. Un'elica che ha la funzione di sensore.",null,"b. Un'elica cui è attaccato un cavo che ha la funzione di sensore.",null,"c. Un'elica cui è attaccato un tubo che ha la funzione di sensore.",null,"Selezionare una risposta","",null,0,0,0,0,0,"a"]
["504. I 360° dell'orizzonte sono divisi in quattro quadranti: 1 NE; 2 ES; 3 SW; 4 WN. La direzione (Rv o Rlv) 158° in quale quadrante si trova?","a. 1.",null,"b. 2.",null,"c. 4.",null,"Selezionare una risposta","",null,0,0,0,0,0,"b"]
["505. Cos'è un nodo?","a. La grandezza che equivale a 1.850 metri, pari alla lunghezza di 1' di Longitudine.",null,"b. E' la velocità di 1850 metri all'ora.",null,"c. L'unità di misura della velocità della nave.",null,"Selezionare una risposta","",null,0,0,0,0,0,"c"]
["506. Se la posizione della mia nave è a 6 miglia sul Rlv 135° dal Faro di Pianosa....","a. Mi trovo 6 miglia a NW del faro.",null,"b. Mi trovo 6 miglia a SE del faro.",null,"c. Non so dove mi trovo.",null,"Selezionare una risposta","",null,0,0,0,0,0,"b"]
["507. I 360° dell'orizzonte sono divisi in quattro quadranti: 1 NE; 2 ES; 3 SW; 4 WN. La direzione (Rv o Rlv) 225° in quale quadrante si trova?","a. 1.",null,"b. 2.",null,"c. 3.",null,"Selezionare una risposta","",null,0,0,0,0,0,"c"]
["508. Se la mia barca si trova ad Ovest del Faro della Meloria, per quanto rilevo questo faro?","a. 270°.",null,"b. 090°.",null,"c. Non vi sono elementi sufficienti per dirlo.",null,"Selezionare una risposta","",null,0,0,0,0,0,"b"]
["509. Se la posizione della mia nave è a 10 miglia sul Rlv 180° del Faro di Pianosa....","a. Mi trovo 10 miglia a Nord del faro.",null,"b. Mi trovo 10 miglia a Sud del faro.",null,"c. Non so dove mi trovo.",null,"Selezionare una risposta","",null,0,0,0,0,0,"a"]
["510. La navigazione è stimata quando…..","a. La determinazione del punto nave stimato è in funzione della rotta seguita e delle miglia percorse in un dato intervallo di tempo.",null,"b. La determinazione del punto nave è in funzione degli elementi in vista della costa.",null,"c. La determinazione della rotta vera è in funzione del punto nave stimato.",null,"Selezionare una risposta","",null,0,0,0,0,0,"a"]
["511. Se la posizione della mia nave è a 10 miglia sul Rlv 180° dal Faro di Pianosa....","a. Mi trovo 10 miglia.a Nord del faro",null,"b. Mi trovo 10 miglia a Sud del faro.",null,"c. Non so dove mi trovo.",null,"Selezionare una risposta","",null,0,0,0,0,0,"b"]
["512. La navigazione è costiera quando…..","a. La determinazione del punto nave stimato è in funzione della rotta seguita e delle miglia percorse in un dato intervallo di tempo.",null,"b. La determinazione del punto nave è in funzione degli elementi in vista della costa.",null,"c. La determinazione del punto nave è possibile se ci si allontana oltre 1 miglio dalla costa.",null,"Selezionare una risposta","",null,0,0,0,0,0,"b"]
["513. Con quale parametro varia la distanza della linea dell'orizzonte dell'osservatore?","a. Cresce con il crescere dell'elevazione della posizione dell'osservatore.",null,"b. E' sempre costante.",null,"c. Decresce con il crescere dell'altezza dell'osservatore.",null,"Selezionare una risposta","",null,0,0,0,0,0,"a"]
["514. Cosa s'intende per rilevamento di un oggetto?","a. L'angolo che un astro forma con il meridiano 0°.",null,"b. L'avvistamento di un punto cospicuo della costa.",null,"c. L'angolo che il piano verticale dell'oggetto rilevato forma con il verticale Nord.",null,"Selezionare una risposta","",null,0,0,0,0,0,"c"]
["515. Se la mia nave si trova sul Rlv 050° del Faro di Ponza , quale Rlv misuro di questo faro?","a. 050°.",null,"b. 230°.",null,"c. Non vi sono tutti gli elementi per rispondere alla domanda.",null,"Selezionare una risposta","",null,0,0,0,0,0,"a"]
["516. I 360° dell'orizzonte sono divisi in quattro quadranti: 1 NE; 2 ES; 3 SW; 4 WN. La direzione (Rv o Rlv) 319° in quale quadrante si trova?","a. 1.",null,"b. 2.",null,"c. 4.",null,"Selezionare una risposta","",null,0,0,0,0,0,"c"]
["517. I 360° dell'orizzonte sono divisi in quattro quadranti: 1 NE; 2 ES; 3 SW; 4 WN. La direzione (Rv o Rlv) 036° in quale quadrante si trova?","a. 1.",null,"b. 2.",null,"c. 4.",null,"Selezionare una risposta","",null,0,0,0,0,0,"a"]
["518. Quando il rilevamento polare semicircolare si considera positivo o negativo?","a. Quando l'oggetto è rispettivamente a dritta o a sinistra dell'osservatore rivolto verso prua.",null,"b. Quando l'oggetto è rispettivamente a N o a S della prua della nave.",null,"c. Quando è rispettivamente maggiore o minore della rotta.",null,"Selezionare una risposta","",null,0,0,0,0,0,"a"]
["519. Qual è la velocità di una nave che percorre 12 miglia in due ore?","a. 6 nodi all'ora.",null,"b. 6 nodi.",null,"c. 12 miglia all'ora.",null,"Selezionare una risposta","",null,0,0,0,0,0,"b"]
["520. Qual è la velocità di una nave che percorre 15 miglia in tre ore?","a. 5 nodi.",null,"b. 7 miglia all'ora.",null,"c. 3 nodi.",null,"Selezionare una risposta","",null,0,0,0,0,0,"a"]
["521. Se la mia barca si trova Nord del Faro di Porto Ferraio, per quanto rilevo questo faro?","a. 180°",null,"b. 360°",null,"c. 240°",null,"Selezionare una risposta","",null,0,0,0,0,0,"a"]
["522. Qual è la velocità di una nave che percorre 20 miglia in due ore e mezza?","a. 8 nodi.",null,"b. 10 nodi.",null,"c. 6 nodi all'ora.",null,"Selezionare una risposta","",null,0,0,0,0,0,"a"]
["523. Se la mia barca si trova Sud Est dello Scoglio Africa per quanto rilevo questo scoglio?","a. 135°",null,"b. 315°",null,"c. 45°",null,{"$f":"IF(AND(C68=\"X\",E68=\"X\"),\"Selezionare una sola risposta\",IF(AND(C68=\"X\",G68=\"X\"),\"Selezionare una sola risposta\",IF(AND(E68=\"X\",G68=\"X\"),\"Selezionare una sola risposta\",IF(AND(C68=\"\",E68=\"\",G68=\"\"),\"Selezionare una risposta\",\"\"))))","v":"Selezionare una risposta"},{"$f":"IF(O68=0,\"\",IF((K68+L68+M68)=0,IF(AND(C68=\"\",E68=\"\",G68=\"\"),\"\",\"OK\"),\"Errore. Risposta corretta '\"&P68&\"'\"))","v":""},null,{"$f":"IF(C68=\"X\",IF($P68=\"a\",0,1),0)","v":0},{"$f":"IF(E68=\"X\",IF($P68=\"b\",0,1),0)","v":0},{"$f":"IF(G68=\"X\",IF($P68=\"c\",0,1),0)","v":0},{"$f":"IF(H68=\"\",IF(I68=\"OK\",0,IF(I68=\"\",0,1)),0)","v":0},{"$f":"IF(H68=\"\",1,0)","v":0},"b"]
["524. Se la posizione della mia nave è 10 miglia sul Rlv 180° del Faro di Pianosa....","a. Mi trovo 10 miglia Nord del faro.",null,"b. Mi trovo 10 miglia Sud del faro.",null,"c. Non so dove mi trovo.",null,"Selezionare una risposta","",null,0,0,0,0,0,"a"]
["525. Cos'è la rotta?","a. L’arco di cerchio massimo congiungente due punti.",null,"b. La linea che rappresenta il cammino della nave rispetto al fondo marino.",null,"c. Il percorso più breve congiungente due punti del globo.",null,"Selezionare una risposta","",null,0,0,0,0,0,"b"]
["526. Se la mia barca si trova Sud del Faro di Rio Marina per quanto rilevo questo faro?","a. 180°.",null,"b. 360°.",null,"c. 245°.",null,"Selezionare una risposta","",null,0,0,0,0,0,"b"]
["527. Se la mia barca si trova Nord-Ovest del Faro di Portoferraio, per quanto rilevo questo faro?","a. 315°",null,"b. 135°",null,"c. 215°",null,"Selezionare una risposta","",null,0,0,0,0,0,"b"]
["528. Dalla mia nave rilevo per 050° il Faro di Ponza. Misurando invece dal faro la mia nave, quale rilevamento vero (Rlv) otterrò?","a. 050°.",null,"b. 230°.",null,"c. 140°.",null,"Selezionare una risposta","",null,0,0,0,0,0,"b"]
["529. Cosa s'intende per deriva positiva o negativa?","a. La deriva che si produce rispettivamente a dritta e a sinistra della nave.",null,"b. La deriva E o W.",null,"c. La deriva dello stesso segno della deviazione o di segno opposto.",null,"Selezionare una risposta","",null,0,0,0,0,0,"a"]
["530. Cosa s'intende per direzione di una corrente?","a. La direzione rispetto alla costa.",null,"b. La direzione dalla quale la massa d'acqua proviene.",null,"c. La direzione verso cui la massa d'acqua dirige.",null,"Selezionare una risposta","",null,0,0,0,0,0,"c"]
["531. Cosa s'intende per scarroccio positivo o negativo?","a. Lo scarroccio E o W.",null,"b. Lo scarroccio avente lo stesso segno della deviazione o di segno opposto.",null,"c. Lo spostamento laterale che avviene rispettivamente a dritta o a sinistra.",null,"Selezionare una risposta","",null,0,0,0,0,0,"c"]
["532. Quali sono gli elementi di individuazione di una corrente?","a. Deviazione e declinazione.",null,"b. Direzione e intensità.",null,"c. Rotta e prora.",null,"Selezionare una risposta","",null,0,0,0,0,0,"b"]

{"sheet":"Foglio1","index":7,"n_rows":0,"n_cols":0,"rows_kept":0}